Workbook

Sheet SAPBEXqueriesDefunct (hidden)
A1: 9
A2: 8 | AE2: 73 | CM2: 476 | DG2: 208 | EA2: 7056 | EU2: 4 | FY2: 33 | HW2: 248
A3: 24 | AE3: 59 | CM3: 13 | DG3: 14 | EA3: 13 | EU3: 11 | FY3: 21 | HW3: 2
B4: 261 | C4: DA4QZTAPZO7BC3TG1BEIUUFW9 | D4: TRUE | E4: TRUE | F4: SAPBEXq0010 | G4: 2 | H4: 2 | I4: FALSE | L4: TRUE | M4: FALSE | O4: TRUE | P4: FALSE | Q4: 0 | S4: 5 | T4: TRUE | U4: TRUE | X4: FALSE | Y4: FALSE | Z4: FALSE | AE4: 11 | AF4: 0PAYRL_AREA | AG4: Payroll Area | AH4: X | AK4: 0001 | AS4: 0 | AT4: 03 | AX4: 00000000 | AY4: K | AZ4: 0PAYRL_AREA | BA4: A | BD4: H | BJ4: 00000000 | BK4: 0000 | BM4: 0 | BR4: 1 | BS4: 1 | BT4: 1 | BU4: 0 | BV4: 0 | CB4: DA4HO01I2JLLJYJEIRTJ2DMNT | CI4: 0000 | CM4: 11 | CN4: D4O21W1IBUB3HEML1KWP5YGOP | CO4: D4O21W1IBUDEJ9LV077JD8NI1 | CP4: Grade 1 - 4 F/T | CQ4: 0001 | CS4: S | CU4: L | DG4: 11 | DH4: 0ORGUNIT | DI4: 0BBPPURGRPX | DJ4: Ind.Purchasing Group | DK4: 0000 | DL4: X | DM4: 2 | DN4: 0 | DO4: 0 | DT4: 0000 | EA4: 11 | EB4: D4O21W1IBUDEJ9LV077JD8NI1 | EC4: DA4HOQG67K8TYQEWWA71P4RND | EI4: 00 | EJ4: X | EK4: 0 | EL4: 0 | EU4: 16 | EV4: 0ORGUNIT | EW4: 253 | EX4: Organizational Unit | EZ4: T | FA4: 0 | FB4: 253 | FC4: 0ORGUNIT | FD4: 0 | FY4: 11 | FZ4: ZS_DT_1 | GA4: 1 | GB4: P | GC4: I | GD4: EQ | GE4: 20150930 | GF4: 30/09/2015 | GJ4: 0 | GL4: 0 | GN4: 0 | GO4: Target date 1 | GP4: 60 | GS4: ZEMP_STRT | GT4: 20150930 | HW4: 11 | HX4: 0000000107 | HY4: DA4HO01I2JEOEDLKMWX0GJ27T
B5: 257 | C5: DA4HO01I2JQZCATPRJUTJDEK9 | D5: TRUE | E5: TRUE | F5: SAPBEXq0008 | G5: 2 | H5: 2 | I5: FALSE | L5: TRUE | M5: FALSE | O5: TRUE | P5: FALSE | Q5: 0 | S5: 5 | T5: TRUE | U5: TRUE | X5: FALSE | Y5: FALSE | Z5: FALSE | AE5: 11 | AF5: ZPERSAREA | AG5: ZPersonal Area | AH5: X | AK5: 0002 | AM5: Social Work | AS5: 2 | AT5: 03 | AX5: 00000000 | AY5: K | AZ5: ZPERSAREA | BA5: A | BD5: H | BJ5: 00000000 | BK5: 0000 | BM5: 0 | BO5: 1 | BR5: 1 | BS5: 1 | BT5: 1 | BU5: 0 | BV5: 0 | CB5: DA4HO01I2JMD8KV5UB954T0XL | CI5: 0000 | CM5: 11 | CN5: DA4HOQG67K82A435KQRFMPDDL | CO5: DA4HOQG67K8TYQEWWA71P4RND | CP5: White Scottish | CQ5: 0001 | CS5: S | CU5: L | CV5: X | DG5: 11 | DH5: 0ORGUNIT | DI5: 0BBPPURORGX | DJ5: Ind. Purchasing Org. | DK5: 0000 | DL5: X | DM5: 2 | DN5: 0 | DO5: 0 | DT5: 0000 | EA5: 11 | EB5: D4O21W1IBUDEJ9LV077JD8NI1 | EC5: DA4HOQG67K9LNCQO7TMNRK5X5 | EI5: 00 | EJ5: X | EK5: 0 | EL5: 0 | EU5: 16 | EV5: 0ORGUNIT | EW5: 253 | EX5: Hierarchy Node(s) | EZ5: T | FA5: 0 | FB5: 37 | FC5: 0HIER_NODE | FD5: 0 | FY5: 11 | FZ5: ZP_ORGUN | GA5: 2 | GB5: M | GJ5: 0 | GL5: 0 | GN5: 0 | GO5: Org Unit Hierarchy (Selection option, optional) | GP5: 60 | GS5: 0ORGUNIT | HW5: 11 | HX5: 0000000100 | HY5: X
B6: 253 | C6: DA4HO01I2JQZCATPRJUTJDEK9 | D6: TRUE | E6: TRUE | F6: SAPBEXq0012 | G6: 2 | H6: 2 | I6: FALSE | L6: TRUE | M6: FALSE | O6: TRUE | P6: FALSE | Q6: 0 | S6: 5 | T6: TRUE | U6: TRUE | X6: FALSE | Y6: FALSE | Z6: FALSE | AE6: 11 | AF6: 0ORGUNIT | AG6: Organizational Unit | AH6: X | AK6: 0003 | AS6: 1 | AT6: 03 | AU6: X | AV6: ORGEH | AW6: 000 | AX6: 20150930 | AY6: K | AZ6: 0ORGUNIT | BA6: A | BD6: H | BE6: 0ORGUNIT | BF6: A | BJ6: 00000000 | BK6: 0000 | BM6: 0 | BQ6: 2 | BR6: 1 | BS6: 1 | BT6: 1 | BU6: 0 | BV6: 0 | CB6: DA4HO01I2JN4X76X5UOR78F7D | CI6: 0000 | CM6: 11 | CN6: DA4HOQG67K82A435KQRFMPDDL | CO6: DA4HOQG67KADBZ2FJD29TZK6X | CP6: Other British | CQ6: 0002 | CS6: S | CU6: L | CV6: X | DG6: 11 | DH6: 0ORGUNIT | DI6: 0BBP_BUYID | DJ6: Buyer ID | DK6: 0000 | DL6: X | DM6: 5 | DN6: 0 | DO6: 0 | DT6: 0000 | EA6: 11 | EB6: D4O21W1IBUDEJ9LV077JD8NI1 | EC6: DA4HOQG67KADBZ2FJD29TZK6X | EI6: 00 | EJ6: X | EK6: 0 | EL6: 0 | EU6: 14 | EV6: 0ORGUNIT | EW6: 253 | EX6: Organizational Unit | EZ6: T | FA6: 0 | FB6: 253 | FC6: 0ORGUNIT | FD6: 0 | FY6: 11 | FZ6: ZBUDH | GA6: 1 | GB6: P | GC6: I | GD6: EQ | GE6: 20150930 | GF6: 30/09/2015 | GJ6: 0 | GL6: 0 | GN6: 0 | GO6: Master Data Key Date | GP6: 60 | GS6: 0DATE | GT6: 20150930 | HW6: 11 | HX6: 0000000101
B7: 249 | C7: DA4HO01I2JQZCATPRJUTJDEK9 | D7: TRUE | E7: TRUE | F7: SAPBEXq0002 | G7: 2 | H7: 2 | I7: FALSE | L7: TRUE | M7: FALSE | O7: TRUE | P7: FALSE | Q7: 0 | S7: 5 | T7: TRUE | U7: TRUE | X7: FALSE | Y7: FALSE | Z7: FALSE | AE7: 11 | AF7: 0PERS_SAREA | AG7: Personnel Subarea | AH7: X | AK7: 0004 | AR7: U | AS7: 1 | AT7: 03 | AX7: 00000000 | AY7: K | AZ7: 0PERS_SAREA | BA7: A | BD7: H | BJ7: 00000000 | BK7: 0000 | BM7: 0 | BR7: 1 | BS7: 1 | BT7: 1 | BU7: 0 | BV7: 0 | CB7: DA4HO01I2JNWLTIOHE4D9NTH5 | CI7: 0000 | CM7: 11 | CN7: D4O21W1IBUB3HEML1KWP5YGOP | CO7: D4O21W1IBUKBOUJOW241Z37Y1 | CP7: Grade 1 - 4 P/T | CQ7: 0002 | CS7: S | CU7: L | DG7: 11 | DH7: 0ORGUNIT | DI7: 0BBP_ISCOMP | DJ7: Organizational Unit is Company | DK7: 0000 | DL7: X | DM7: 1 | DN7: 0 | DO7: 0 | DT7: 0000 | EA7: 11 | EB7: D4O21W1IBUDEJ9LV077JD8NI1 | EC7: DA4HOQG67KBWP7PY6FXHYUCQH | EI7: 00 | EJ7: X | EK7: 0 | EL7: 0 | EU7: 14 | EV7: 0ORGUNIT | EW7: 253 | EX7: Hierarchy Node(s) | EZ7: T | FA7: 0 | FB7: 37 | FC7: 0HIER_NODE | FD7: 0 | FY7: 11 | FZ7: ZZPERAR | GA7: 1 | GB7: M | GJ7: 0 | GL7: 0 | GN7: 0 | GO7: ZPersonnel Area | GP7: 60 | GS7: ZPERSAREA | HW7: 11 | HX7: 0000000104 | HY7: 1
B8: 245 | C8: DA4HO01I2JQZCATPRJUTJDEK9 | D8: TRUE | E8: TRUE | F8: SAPBEXq0007 | G8: 2 | H8: 2 | I8: FALSE | L8: TRUE | M8: FALSE | O8: TRUE | P8: FALSE | Q8: 0 | S8: 5 | T8: TRUE | U8: TRUE | X8: FALSE | Y8: FALSE | Z8: FALSE | AE8: 11 | AF8: ZTEILK | AG8: Checkbox for Part-Ti | AH8: X | AK8: 0005 | AS8: 1 | AT8: 03 | AX8: 00000000 | AY8: K | AZ8: ZTEILK | BA8: A | BD8: H | BJ8: 00000000 | BK8: 0000 | BM8: 0 | BR8: 1 | BS8: 1 | BT8: 1 | BU8: 0 | BV8: 0 | CB8: DA4HO01I2JOOAFUFSXJZC37QX | CI8: 0000 | CM8: 11 | CN8: D4O21W1IBUB3HEML1KWP5YGOP | CO8: DEMAFDB5LZ4S252XBVM7GJP4P | CP8: Grade 1 - 4 Total | CQ8: 0003 | CS8: S | CU8: L | DG8: 11 | DH8: 0ORGUNIT | DI8: 0BUS_AREA | DJ8: Business area | DK8: 0000 | DL8: X | DM8: 0 | DN8: 0 | DO8: 0 | DT8: 0000 | EA8: 11 | EB8: D4O21W1IBUDEJ9LV077JD8NI1 | EC8: DA4HOQG67KCODU1PHZD419R09 | EI8: 00 | EJ8: X | EK8: 0 | EL8: 0 | FY8: 10 | FZ8: ZS_DT_1 | GA8: 1 | GB8: P | GC8: I | GD8: EQ | GE8: 20150930 | GF8: 30/09/2015 | GJ8: 0 | GL8: 0 | GN8: 0 | GO8: Target date 1 | GP8: 60 | GS8: ZEMP_STRT | GT8: 20150930 | HW8: 11 | HX8: 0000000103
B9: 241 | C9: DA4HO01I2JQZCATPRJUTJDEK9 | D9: TRUE | E9: TRUE | F9: SAPBEXq0003 | G9: 2 | H9: 2 | I9: FALSE | L9: TRUE | M9: FALSE | O9: TRUE | P9: FALSE | Q9: 0 | S9: 5 | T9: TRUE | U9: TRUE | X9: FALSE | Y9: FALSE | Z9: FALSE | AE9: 11 | AF9: ZPRIM_ID | AG9: ZPrimary Employee ID | AH9: X | AK9: 0006 | AS9: 2 | AT9: 03 | AX9: 00000000 | AY9: K | AZ9: ZPRIM_ID | BA9: A | BD9: H | BJ9: 00000000 | BK9: 0000 | BM9: 0 | BR9: 1 | BS9: 1 | BT9: 1 | BU9: 0 | BV9: 0 | CB9: DA4HO01I2JPFZ2674GZLEIM0P | CI9: 0000 | CM9: 11 | CN9: DA4HOQG67K82A435KQRFMPDDL | CO9: DA4HOQG67K9LNCQO7TMNRK5X5 | CP9: Irish | CQ9: 0003 | CS9: S | CU9: L | CV9: X | DG9: 11 | DH9: 0ORGUNIT | DI9: 0COMP_CODE | DJ9: Company code | DK9: 0000 | DL9: X | DM9: 0 | DN9: 0 | DO9: 0 | DT9: 0000 | EA9: 11 | EB9: D4O21W1IBUDEJ9LV077JD8NI1 | EC9: DA4HOQG67KDG2GDGTISQ3P5A1 | EI9: 00 | EJ9: X | EK9: 0 | EL9: 0 | FY9: 10 | FZ9: ZP_ORGUN | GA9: 2 | GB9: M | GJ9: 0 | GL9: 0 | GN9: 0 | GO9: Org Unit Hierarchy (Selection option, optional) | GP9: 60 | GS9: 0ORGUNIT | HW9: 11 | HX9: 0000000102 | HY9: 1
B10: 237 | C10: DA4HO01I2JQZCATPRJUTJDEK9 | D10: TRUE | E10: TRUE | F10: SAPBEXq0006 | G10: 2 | H10: 2 | I10: FALSE | L10: TRUE | M10: FALSE | O10: TRUE | P10: FALSE | Q10: 0 | S10: 5 | T10: TRUE | U10: TRUE | X10: FALSE | Y10: FALSE | Z10: FALSE | AE10: 11 | AF10: 0CNTRCTTYPE | AG10: Contract Type | AH10: X | AK10: 0007 | AS10: 1 | AT10: 03 | AX10: 00000000 | AY10: K | AZ10: 0CNTRCTTYPE | BA10: A | BD10: H | BJ10: 00000000 | BK10: 0000 | BM10: 0 | BR10: 1 | BS10: 1 | BT10: 1 | BU10: 0 | BV10: 0 | CB10: DB0ZCI83WEWAMKG013IL0HDDL | CI10: 0000 | CM10: 11 | CN10: D4O21W1IBUB3HEML1KWP5YGOP | CO10: D4O21W1IBUE67VXMBQN5FO1RT | CP10: Grade 5 - 7 F/T | CQ10: 0004 | CS10: S | CU10: L | DG10: 11 | DH10: 0ORGUNIT | DI10: 0CO_MST_AR | DJ10: Controlling Area of Master Cost Center | DK10: 0000 | DL10: X | DM10: 0 | DN10: 0 | DO10: 0 | DT10: 0000 | EA10: 11 | EB10: D4O21W1IBUDEJ9LV077JD8NI1 | EC10: DA4HOQG67KE7R2P8528C64JJT | EI10: 00 | EJ10: X | EK10: 0 | EL10: 0 | FY10: 10 | FZ10: ZBUDH | GA10: 1 | GB10: P | GC10: I | GD10: EQ | GE10: 20150930 | GF10: 30/09/2015 | GJ10: 0 | GL10: 0 | GN10: 0 | GO10: Master Data Key Date | GP10: 60 | GS10: 0DATE | GT10: 20150930 | HW10: 11 | HX10: 0000000108
B11: 233 | C11: DA4HO01I2JQZCATPRJUTJDEK9 | D11: TRUE | E11: TRUE | F11: SAPBEXq0005 | G11: 2 | H11: 2 | I11: FALSE | L11: TRUE | M11: FALSE | O11: TRUE | P11: FALSE | Q11: 0 | S11: 5 | T11: TRUE | U11: TRUE | X11: FALSE | Y11: FALSE | Z11: FALSE | AE11: 11 | AF11: DA4HOQG67K82A435KQRFMPDDL | AG11: Ethnicity Breakdown - Rev 2011 | AI11: X | AJ11: X | AK11: 0001 | AR11: U | AT11: 00 | AY11: K | AZ11: DA4HOQG67K82A435KQRFMPDDL | BA11: A | BJ11: 00000000 | BK11: 0000 | BL11: X | BM11: 0 | BR11: 0 | BS11: 0 | BT11: 0 | BU11: 0 | BV11: 0 | CB11: DA4HOQG67K82A435KQRFMPDDL | CI11: 0000 | CM11: 11 | CN11: DA4HOQG67K82A435KQRFMPDDL | CO11: DA4HQT1FQ21CBCL0CVM3F7BP5 | CP11: Gypsy / Traveller | CQ11: 0004 | CS11: S | CU11: L | CV11: X | DG11: 11 | DH11: 0ORGUNIT | DI11: 0CRMSALGRPX | DJ11: Sls Group: Indicator | DK11: 0000 | DL11: X | DM11: 2 | DN11: 0 | DO11: 0 | DT11: 0000 | EA11: 11 | EB11: D4O21W1IBUDEJ9LV077JD8NI1 | EC11: DA4HOQG67KEZFP0ZGLNY8JXTL | EI11: 00 | EJ11: X | EK11: 0 | EL11: 0 | FY11: 10 | FZ11: ZZPERAR | GA11: 1 | GB11: M | GJ11: 0 | GL11: 0 | GN11: 0 | GO11: ZPersonnel Area | GP11: 60 | GS11: ZPERSAREA | HW11: 11 | HX11: 0000009002 | HY11: D4O21W1IBUB3HEML1KWP5YGOP
Z12: FALSE | AE12: 11 | AF12: D4O21W1IBUB3HEML1KWP5YGOP | AG12: WP Bandings | AI12: X | AJ12: Y | AK12: 0001 | AR12: U | AT12: 00 | AY12: K | AZ12: D4O21W1IBUB3HEML1KWP5YGOP | BA12: A | BJ12: 00000000 | BK12: 0000 | BM12: 0 | BR12: 0 | BS12: 0 | BT12: 0 | BU12: 0 | BV12: 0 | CB12: D4O21W1IBUB3HEML1KWP5YGOP | CI12: 0000 | CM12: 11 | CN12: D4O21W1IBUB3HEML1KWP5YGOP | CO12: D4O21W1IBUL3DGVG7LJO1IM7T | CP12: Grade 5 - 7 P/T | CQ12: 0005 | CS12: S | CU12: L | DG12: 11 | DH12: 0ORGUNIT | DI12: 0CRMSALOFFX | DJ12: Sls Office:Indicator | DK12: 0000 | DL12: X | DM12: 2 | DN12: 0 | DO12: 0 | DT12: 0000 | EA12: 11 | EB12: D4O21W1IBUDEJ9LV077JD8NI1 | EC12: DA4HOQG67KFR4BCQS53KAZC3D | EI12: 00 | EJ12: X | EK12: 0 | EL12: 0 | FY12: 9 | FZ12: ZS_DT_1 | GA12: 1 | GB12: P | GC12: I | GD12: EQ | GE12: 20150930 | GF12: 30/09/2015 | GJ12: 0 | GL12: 0 | GN12: 0 | GO12: Target date 1 | GP12: 60 | GS12: ZEMP_STRT | GT12: 20150930 | HW12: 11 | HX12: 0000009000
Z13: FALSE | AE13: 10 | AF13: 0PAYRL_AREA | AG13: Payroll Area | AH13: X | AK13: 0001 | AS13: 0 | AT13: 03 | AX13: 00000000 | AY13: K | AZ13: 0PAYRL_AREA | BA13: A | BD13: H | BJ13: 00000000 | BK13: 0000 | BM13: 0 | BR13: 1 | BS13: 1 | BT13: 1 | BU13: 0 | BV13: 0 | CB13: DA4HO01I2JLLJYJEIRTJ2DMNT | CI13: 0000 | CM13: 11 | CN13: DA4HOQG67K82A435KQRFMPDDL | CO13: DA4HQT1FQ223ZYWROF1PHMPYX | CP13: Polish | CQ13: 0005 | CS13: S | CU13: L | CV13: X | DG13: 11 | DH13: 0ORGUNIT | DI13: 0CRMSALORGX | DJ13: Sales Org. Indicator | DK13: 0000 | DL13: X | DM13: 2 | DN13: 0 | DO13: 0 | DT13: 0000 | EA13: 11 | EB13: D4O21W1IBUDEJ9LV077JD8NI1 | EC13: DA4HOQG67KGISXOI3OJ6DEQD5 | EI13: 00 | EJ13: X | EK13: 0 | EL13: 0 | FY13: 9 | FZ13: ZP_ORGUN | GA13: 2 | GB13: M | GJ13: 0 | GL13: 0 | GN13: 0 | GO13: Org Unit Hierarchy (Selection option, optional) | GP13: 60 | GS13: 0ORGUNIT | HW13: 11 | HX13: 0000000010
Z14: FALSE | AE14: 10 | AF14: ZPERSAREA | AG14: ZPersonal Area | AH14: X | AK14: 0002 | AM14: Land and Environmental | AS14: 2 | AT14: 03 | AX14: 00000000 | AY14: K | AZ14: ZPERSAREA | BA14: A | BD14: H | BJ14: 00000000 | BK14: 0000 | BM14: 0 | BO14: 1 | BR14: 1 | BS14: 1 | BT14: 1 | BU14: 0 | BV14: 0 | CB14: DA4HO01I2JMD8KV5UB954T0XL | CI14: 0000 | CM14: 11 | CN14: D4O21W1IBUB3HEML1KWP5YGOP | CO14: DEMAGSP8VDTMCQ2Z9KSRG7UGP | CP14: Grade 5 - 7 Total | CQ14: 0006 | CS14: S | CU14: L | DG14: 11 | DH14: 0ORGUNIT | DI14: 0CRMSRVTGRP | DJ14: Ex. CRM Service Org. | DK14: 0000 | DL14: X | DM14: 1 | DN14: 0 | DO14: 0 | DT14: 0000 | EA14: 11 | EB14: D4O21W1IBUDEJ9LV077JD8NI1 | EC14: DA4HOQG67KHAHK09F7YSFU4MX | EI14: 00 | EJ14: X | EK14: 0 | EL14: 0 | FY14: 9 | FZ14: ZBUDH | GA14: 1 | GB14: P | GC14: I | GD14: EQ | GE14: 20150930 | GF14: 30/09/2015 | GJ14: 0 | GL14: 0 | GN14: 0 | GO14: Master Data Key Date | GP14: 60 | GS14: 0DATE | GT14: 20150930 | HW14: 11 | HX14: 0000000021
Z15: FALSE | AE15: 10 | AF15: 0ORGUNIT | AG15: Organizational Unit | AH15: X | AK15: 0003 | AS15: 1 | AT15: 03 | AU15: X | AV15: ORGEH | AW15: 000 | AX15: 20150930 | AY15: K | AZ15: 0ORGUNIT | BA15: A | BD15: H | BE15: 0ORGUNIT | BF15: A | BJ15: 00000000 | BK15: 0000 | BM15: 0 | BQ15: 2 | BR15: 1 | BS15: 1 | BT15: 1 | BU15: 0 | BV15: 0 | CB15: DA4HO01I2JN4X76X5UOR78F7D | CI15: 0000 | CM15: 11 | CN15: DA4HOQG67K82A435KQRFMPDDL | CO15: DA4HQT1FQ22VOL8IZYHBK248P | CP15: Other White Ethnic | CQ15: 0006 | CS15: S | CU15: L | CV15: X | DG15: 11 | DH15: 0ORGUNIT | DI15: 0CRM_SALGRP | DJ15: CRM Sales Group | DK15: 0000 | DL15: X | DM15: 1 | DN15: 0 | DO15: 0 | DT15: 0000 | EA15: 11 | EB15: D4O21W1IBUDEJ9LV077JD8NI1 | EC15: DA4HOQG67KI266C0QREEI9IWP | EI15: 00 | EJ15: X | EK15: 0 | EL15: 0 | FY15: 9 | FZ15: ZZPERAR | GA15: 1 | GB15: M | GJ15: 0 | GL15: 0 | GN15: 0 | GO15: ZPersonnel Area | GP15: 60 | GS15: ZPERSAREA | HW15: 11 | HX15: 0000000022
Z16: FALSE | AE16: 10 | AF16: 0PERS_SAREA | AG16: Personnel Subarea | AH16: X | AK16: 0004 | AR16: U | AS16: 1 | AT16: 03 | AX16: 00000000 | AY16: K | AZ16: 0PERS_SAREA | BA16: A | BD16: H | BJ16: 00000000 | BK16: 0000 | BM16: 0 | BR16: 1 | BS16: 1 | BT16: 1 | BU16: 0 | BV16: 0 | CB16: DA4HO01I2JNWLTIOHE4D9NTH5 | CI16: 0000 | CM16: 11 | CN16: DA4HOQG67K82A435KQRFMPDDL | CO16: DA4HOQG67KBWP7PY6FXHYUCQH | CP16: White Total | CQ16: 0007 | CR16: X | CS16: S | CU16: L | CV16: X | DG16: 11 | DH16: 0ORGUNIT | DI16: 0CRM_SALOFF | DJ16: CRM Sales Office | DK16: 0000 | DL16: X | DM16: 1 | DN16: 0 | DO16: 0 | DT16: 0000 | EA16: 11 | EB16: D4O21W1IBUDEJ9LV077JD8NI1 | EC16: DA4HOQG67KITUSNS2AU0KOX6H | EI16: 00 | EJ16: X | EK16: 0 | EL16: 0 | FY16: 8 | FZ16: ZS_DT_1 | GA16: 1 | GB16: P | GC16: I | GD16: EQ | GE16: 20150930 | GF16: 30/09/2015 | GJ16: 0 | GL16: 0 | GN16: 0 | GO16: Target date 1 | GP16: 60 | GS16: ZEMP_STRT | GT16: 20150930 | HW16: 11 | HX16: 0000000023
AE17: 10 | AF17: ZTEILK | AG17: Checkbox for Part-Ti | AH17: X | AK17: 0005 | AS17: 1 | AT17: 03 | AX17: 00000000 | AY17: K | AZ17: ZTEILK | BA17: A | BD17: H | BJ17: 00000000 | BK17: 0000 | BM17: 0 | BR17: 1 | BS17: 1 | BT17: 1 | BU17: 0 | BV17: 0 | CB17: DA4HO01I2JOOAFUFSXJZC37QX | CI17: 0000 | CM17: 11 | CN17: D4O21W1IBUB3HEML1KWP5YGOP | CO17: D4O21W1IBUEXWI9DNA2RI3G1L | CP17: Grade 8 F/T | CQ17: 0007 | CS17: S | CU17: L | DG17: 11 | DH17: 0ORGUNIT | DI17: 0CRM_SALORG | DJ17: CRM Sales Org. | DK17: 0000 | DL17: X | DM17: 1 | DN17: 0 | DO17: 0 | DT17: 0000 | EA17: 11 | EB17: D4O21W1IBUDEJ9LV077JD8NI1 | EC17: DA4HOQG67KJLJEZJDU9MN4BG9 | EI17: 00 | EJ17: X | EK17: 0 | EL17: 0 | FY17: 8 | FZ17: ZP_ORGUN | GA17: 2 | GB17: M | GJ17: 0 | GL17: 0 | GN17: 0 | GO17: Org Unit Hierarchy (Selection option, optional) | GP17: 60 | GS17: 0ORGUNIT | HW17: 11 | HX17: 0000000030
AE18: 10 | AF18: ZPRIM_ID | AG18: ZPrimary Employee ID | AH18: X | AK18: 0006 | AS18: 2 | AT18: 03 | AX18: 00000000 | AY18: K | AZ18: ZPRIM_ID | BA18: A | BD18: H | BJ18: 00000000 | BK18: 0000 | BM18: 0 | BR18: 1 | BS18: 1 | BT18: 1 | BU18: 0 | BV18: 0 | CB18: DA4HO01I2JPFZ2674GZLEIM0P | CI18: 0000 | CM18: 11 | CN18: DA4HOQG67K82A435KQRFMPDDL | CO18: DA4HOQG67KCODU1PHZD419R09 | CP18: Mixed or Multiple Ethnic Groups | CQ18: 0008 | CS18: S | CU18: L | CV18: X | DG18: 11 | DH18: 0ORGUNIT | DI18: 0CRM_SRVORG | DJ18: Service Org. CRM | DK18: 0000 | DL18: X | DM18: 1 | DN18: 0 | DO18: 0 | DT18: 0000 | EA18: 11 | EB18: D4O21W1IBUDEJ9LV077JD8NI1 | EC18: DA4HOQG67KKD81BAPDP8PJPQ1 | EI18: 00 | EJ18: X | EK18: 0 | EL18: 0 | FY18: 8 | FZ18: ZBUDH | GA18: 1 | GB18: P | GC18: I | GD18: EQ | GE18: 20150930 | GF18: 30/09/2015 | GJ18: 0 | GL18: 0 | GN18: 0 | GO18: Master Data Key Date | GP18: 60 | GS18: 0DATE | GT18: 20150930 | HW18: 11 | HX18: 0000000040
AE19: 10 | AF19: 0CNTRCTTYPE | AG19: Contract Type | AH19: X | AK19: 0007 | AS19: 1 | AT19: 03 | AX19: 00000000 | AY19: K | AZ19: 0CNTRCTTYPE | BA19: A | BD19: H | BJ19: 00000000 | BK19: 0000 | BM19: 0 | BR19: 1 | BS19: 1 | BT19: 1 | BU19: 0 | BV19: 0 | CB19: DB0ZCI83WEWAMKG013IL0HDDL | CI19: 0000 | CM19: 11 | CN19: D4O21W1IBUB3HEML1KWP5YGOP | CO19: D4O21W1IBULV2377J4ZA3Y0HL | CP19: Grade 8 P/T | CQ19: 0008 | CS19: S | CU19: L | DG19: 11 | DH19: 0ORGUNIT | DI19: 0LOGSYS | DJ19: Source System | DK19: 0000 | DL19: X | DM19: 1 | DN19: 0 | DO19: 0 | DT19: 0000 | EA19: 11 | EB19: D4O21W1IBUDEJ9LV077JD8NI1 | EC19: DA4HOQG67KL4WNN20X4URZ3ZT | EI19: 00 | EJ19: X | EK19: 0 | EL19: 0 | FY19: 8 | FZ19: ZZPERAR | GA19: 1 | GB19: M | GJ19: 0 | GL19: 0 | GN19: 0 | GO19: ZPersonnel Area | GP19: 60 | GS19: ZPERSAREA | HW19: 11 | HX19: 0000000041
AE20: 10 | AF20: DA4HOQG67K82A435KQRFMPDDL | AG20: Ethnicity Breakdown - Rev 2011 | AI20: X | AJ20: X | AK20: 0001 | AR20: U | AT20: 00 | AY20: K | AZ20: DA4HOQG67K82A435KQRFMPDDL | BA20: A | BJ20: 00000000 | BK20: 0000 | BL20: X | BM20: 0 | BR20: 0 | BS20: 0 | BT20: 0 | BU20: 0 | BV20: 0 | CB20: DA4HOQG67K82A435KQRFMPDDL | CI20: 0000 | CM20: 11 | CN20: DA4HOQG67K82A435KQRFMPDDL | CO20: DA4HWYL5HGT0050M6CGMF31MH | CP20: Arab, Arab Scottish or Arab British | CQ20: 0009 | CS20: S | CU20: L | CV20: X | DG20: 11 | DH20: 0ORGUNIT | DI20: 0MAST_CCTR | DJ20: Master Cost Center | DK20: 0000 | DL20: X | DM20: 0 | DN20: 0 | DO20: 0 | DT20: 0000 | EA20: 11 | EB20: D4O21W1IBUDEJ9LV077JD8NI1 | EC20: DA4HOQG67KLWL9YTCGKGUEI9L | EI20: 00 | EJ20: X | EK20: 0 | EL20: 0 | FY20: 7 | FZ20: ZS_DT_1 | GA20: 1 | GB20: P | GC20: I | GD20: EQ | GE20: 20150930 | GF20: 30/09/2015 | GJ20: 0 | GL20: 0 | GN20: 0 | GO20: Target date 1 | GP20: 60 | GS20: ZEMP_STRT | GT20: 20150930 | HW20: 11 | HX20: 0000000042 | HY20: 0
AE21: 10 | AF21: D4O21W1IBUB3HEML1KWP5YGOP | AG21: WP Bandings | AI21: X | AJ21: Y | AK21: 0001 | AR21: U | AT21: 00 | AY21: K | AZ21: D4O21W1IBUB3HEML1KWP5YGOP | BA21: A | BJ21: 00000000 | BK21: 0000 | BM21: 0 | BR21: 0 | BS21: 0 | BT21: 0 | BU21: 0 | BV21: 0 | CB21: D4O21W1IBUB3HEML1KWP5YGOP | CI21: 0000 | CM21: 11 | CN21: D4O21W1IBUB3HEML1KWP5YGOP | CO21: D4O21W1IBV18QHQDXXNJGHXX5 | CP21: Grade 8 Total | CQ21: 0009 | CS21: S | CU21: L | DG21: 11 | DH21: 0ORGUNIT | DI21: 0PERS_AREA | DJ21: Personnel Area | DK21: 0000 | DL21: X | DM21: 1 | DN21: 0 | DO21: 0 | DT21: 0000 | EA21: 11 | EB21: D4O21W1IBUDEJ9LV077JD8NI1 | EC21: DA4HOQG67KMO9WAKO002WTWJD | EI21: 00 | EJ21: X | EK21: 0 | EL21: 0 | FY21: 7 | FZ21: ZP_ORGUN | GA21: 2 | GB21: M | GJ21: 0 | GL21: 0 | GN21: 0 | GO21: Org Unit Hierarchy (Selection option, optional) | GP21: 60 | GS21: 0ORGUNIT | HW21: 11 | HX21: 0000000043 | HY21: 0
AE22: 9 | AF22: 0PAYRL_AREA | AG22: Payroll Area | AH22: X | AK22: 0001 | AS22: 0 | AT22: 03 | AX22: 00000000 | AY22: K | AZ22: 0PAYRL_AREA | BA22: A | BD22: H | BJ22: 00000000 | BK22: 0000 | BM22: 0 | BR22: 1 | BS22: 1 | BT22: 1 | BU22: 0 | BV22: 0 | CB22: DA4HO01I2JLLJYJEIRTJ2DMNT | CI22: 0000 | CM22: 11 | CN22: DA4HOQG67K82A435KQRFMPDDL | CO22: DA4HOQG67KDG2GDGTISQ3P5A1 | CP22: Total Other Ethnic Background | CQ22: 0010 | CS22: S | CU22: L | CV22: X | DG22: 11 | DH22: 0ORGUNIT | DI22: 0PERS_SAREA | DJ22: Personnel Subarea | DK22: 0000 | DL22: X | DM22: 1 | DN22: 0 | DO22: 0 | DT22: 0000 | EA22: 11 | EB22: D4O21W1IBUDEJ9LV077JD8NI1 | EC22: DA4HOQG67KNFYIMBZJFOZ9AT5 | EE22: 2 | EI22: 00 | EJ22: X | EK22: 0 | EL22: 0 | FY22: 7 | FZ22: ZBUDH | GA22: 1 | GB22: P | GC22: I | GD22: EQ | GE22: 20150930 | GF22: 30/09/2015 | GJ22: 0 | GL22: 0 | GN22: 0 | GO22: Master Data Key Date | GP22: 60 | GS22: 0DATE | GT22: 20150930 | HW22: 11 | HX22: 0000000109 | HY22: 0
AE23: 9 | AF23: ZPERSAREA | AG23: ZPersonal Area | AH23: X | AK23: 0002 | AM23: Financial | AS23: 2 | AT23: 03 | AX23: 00000000 | AY23: K | AZ23: ZPERSAREA | BA23: A | BD23: H | BJ23: 00000000 | BK23: 0000 | BM23: 0 | BO23: 1 | BR23: 1 | BS23: 1 | BT23: 1 | BU23: 0 | BV23: 0 | CB23: DA4HO01I2JMD8KV5UB954T0XL | CI23: 0000 | CM23: 11 | CN23: D4O21W1IBUB3HEML1KWP5YGOP | CO23: D4O21W1IBUFPL4L4YTIDKIUBD | CP23: ACZ Grade 8 F/T | CQ23: 0010 | CS23: S | CU23: L | DG23: 11 | DH23: 0ORGUNIT | DI23: 0PLANT | DJ23: Plant | DK23: 0000 | DL23: X | DM23: 0 | DN23: 0 | DO23: 0 | DT23: 0000 | EA23: 11 | EB23: D4O21W1IBUDEJ9LV077JD8NI1 | EC23: DA4HOQG67KO7N4Y3B2VB1OP2X | EI23: 00 | EJ23: X | EK23: 0 | EL23: 0 | FY23: 7 | FZ23: ZZPERAR | GA23: 1 | GB23: M | GJ23: 0 | GL23: 0 | GN23: 0 | GO23: ZPersonnel Area | GP23: 60 | GS23: ZPERSAREA | HW23: 11 | HX23: 0000000113
AE24: 9 | AF24: 0ORGUNIT | AG24: Organizational Unit | AH24: X | AK24: 0003 | AS24: 1 | AT24: 03 | AU24: X | AV24: ORGEH | AW24: 000 | AX24: 20150930 | AY24: K | AZ24: 0ORGUNIT | BA24: A | BD24: H | BE24: 0ORGUNIT | BF24: A | BJ24: 00000000 | BK24: 0000 | BM24: 0 | BQ24: 2 | BR24: 1 | BS24: 1 | BT24: 1 | BU24: 0 | BV24: 0 | CB24: DA4HO01I2JN4X76X5UOR78F7D | CI24: 0000 | CM24: 11 | CN24: D4O21W1IBUB3HEML1KWP5YGOP | CO24: D4O21W1IBUMMQPIYUOEW6DERD | CP24: ACZ Grade 8 P/T | CQ24: 0011 | CS24: S | CU24: L | DG24: 11 | DH24: 0ORGUNIT | DI24: 0PURCH_ORG | DJ24: Purchasing org. | DK24: 0000 | DL24: X | DM24: 0 | DN24: 0 | DO24: 0 | DT24: 0000 | EA24: 11 | EB24: D4O21W1IBUDEJ9LV077JD8NI1 | EC24: DA4HOQG67KOZBR9UMMAX443CP | EE24: 2 | EI24: 00 | EJ24: X | EK24: 0 | EL24: 0 | FY24: 6 | FZ24: ZS_DT_1 | GA24: 1 | GB24: P | GC24: I | GD24: EQ | GE24: 20150930 | GF24: 30/09/2015 | GJ24: 0 | GL24: 0 | GN24: 0 | GO24: Target date 1 | GP24: 60 | GS24: ZEMP_STRT | GT24: 20150930 | HW24: 11 | HX24: 0000000120
AE25: 9 | AF25: 0PERS_SAREA | AG25: Personnel Subarea | AH25: X | AK25: 0004 | AR25: U | AS25: 1 | AT25: 03 | AX25: 00000000 | AY25: K | AZ25: 0PERS_SAREA | BA25: A | BD25: H | BJ25: 00000000 | BK25: 0000 | BM25: 0 | BR25: 1 | BS25: 1 | BT25: 1 | BU25: 0 | BV25: 0 | CB25: DA4HO01I2JNWLTIOHE4D9NTH5 | CI25: 0000 | CM25: 11 | CN25: DA4HOQG67K82A435KQRFMPDDL | CO25: DA4HOQG67KGISXOI3OJ6DEQD5 | CP25: Pakistani | CQ25: 0011 | CS25: S | CU25: L | CV25: X | DG25: 11 | DH25: 0ORGUNIT | DI25: 0PUR_GROUP | DJ25: Purchasing group | DK25: 0000 | DL25: X | DM25: 0 | DN25: 0 | DO25: 0 | DT25: 0000 | EA25: 11 | EB25: D4O21W1IBUDEJ9LV077JD8NI1 | EC25: DA4HOQG67KPR0DLLY5QJ6JHMH | EE25: 2 | EI25: 00 | EJ25: X | EK25: 0 | EL25: 0 | FY25: 6 | FZ25: ZP_ORGUN | GA25: 2 | GB25: M | GJ25: 0 | GL25: 0 | GN25: 0 | GO25: Org Unit Hierarchy (Selection option, optional) | GP25: 60 | GS25: 0ORGUNIT | HW25: 11 | HX25: 0000000121
AE26: 9 | AF26: ZTEILK | AG26: Checkbox for Part-Ti | AH26: X | AK26: 0005 | AS26: 1 | AT26: 03 | AX26: 00000000 | AY26: K | AZ26: ZTEILK | BA26: A | BD26: H | BJ26: 00000000 | BK26: 0000 | BM26: 0 | BR26: 1 | BS26: 1 | BT26: 1 | BU26: 0 | BV26: 0 | CB26: DA4HO01I2JOOAFUFSXJZC37QX | CI26: 0000 | CM26: 11 | CN26: DA4HOQG67K82A435KQRFMPDDL | CO26: DA4HOQG67KE7R2P8528C64JJT | CP26: Indian | CQ26: 0012 | CS26: S | CU26: L | CV26: X | DG26: 11 | DH26: 0ORGUNIT | DI26: 0SALESORG | DJ26: Sales Organization | DK26: 0000 | DL26: X | DM26: 0 | DN26: 0 | DO26: 0 | DT26: 0000 | EA26: 11 | EB26: D4O21W1IBUDEJ9LV077JD8NI1 | EC26: DA4HQT1FQ21CBCL0CVM3F7BP5 | EI26: 00 | EJ26: X | EK26: 0 | EL26: 0 | FY26: 6 | FZ26: ZBUDH | GA26: 1 | GB26: P | GC26: I | GD26: EQ | GE26: 20150930 | GF26: 30/09/2015 | GJ26: 0 | GL26: 0 | GN26: 0 | GO26: Master Data Key Date | GP26: 60 | GS26: 0DATE | GT26: 20150930 | HW26: 11 | HX26: 0000010001 | HY26: DA4HO01I2JQZCATPRJUTJDEK9
AE27: 9 | AF27: ZPRIM_ID | AG27: ZPrimary Employee ID | AH27: X | AK27: 0006 | AS27: 2 | AT27: 03 | AX27: 00000000 | AY27: K | AZ27: ZPRIM_ID | BA27: A | BD27: H | BJ27: 00000000 | BK27: 0000 | BM27: 0 | BR27: 1 | BS27: 1 | BT27: 1 | BU27: 0 | BV27: 0 | CB27: DA4HO01I2JPFZ2674GZLEIM0P | CI27: 0000 | CM27: 11 | CN27: D4O21W1IBUB3HEML1KWP5YGOP | CO27: D4O21W1IBV0H1VEMME7XE2JND | CP27: ACZ Grade 8 Total | CQ27: 0012 | CS27: S | CU27: L | DG27: 11 | DH27: 0ORGUNIT | DI27: 0SALES_GRP | DJ27: Sales group | DK27: 0000 | DL27: X | DM27: 0 | DN27: 0 | DO27: 0 | DT27: 0000 | EA27: 11 | EB27: D4O21W1IBUDEJ9LV077JD8NI1 | EC27: DA4HQT1FQ223ZYWROF1PHMPYX | EI27: 00 | EJ27: X | EK27: 0 | EL27: 0 | FY27: 6 | FZ27: ZZPERAR | GA27: 1 | GB27: M | GJ27: 0 | GL27: 0 | GN27: 0 | GO27: ZPersonnel Area | GP27: 60 | GS27: ZPERSAREA | HW27: 11 | HX27: 0000010002 | HY27: DA4HO01I2JEOEDLKMWX0GJ27T
AE28: 9 | AF28: 0CNTRCTTYPE | AG28: Contract Type | AH28: X | AK28: 0007 | AS28: 1 | AT28: 03 | AX28: 00000000 | AY28: K | AZ28: 0CNTRCTTYPE | BA28: A | BD28: H | BJ28: 00000000 | BK28: 0000 | BM28: 0 | BR28: 1 | BS28: 1 | BT28: 1 | BU28: 0 | BV28: 0 | CB28: DB0ZCI83WEWAMKG013IL0HDDL | CI28: 0000 | CM28: 11 | CN28: DA4HOQG67K82A435KQRFMPDDL | CO28: DA4HOQG67KEZFP0ZGLNY8JXTL | CP28: Bangladeshi | CQ28: 0013 | CS28: S | CU28: L | CV28: X | DG28: 11 | DH28: 0ORGUNIT | DI28: 0SALES_OFF | DJ28: Sales Office | DK28: 0000 | DL28: X | DM28: 0 | DN28: 0 | DO28: 0 | DT28: 0000 | EA28: 11 | EB28: D4O21W1IBUDEJ9LV077JD8NI1 | EC28: DA4HQT1FQ22VOL8IZYHBK248P | EI28: 00 | EJ28: X | EK28: 0 | EL28: 0 | FY28: 5 | FZ28: ZS_DT_1 | GA28: 1 | GB28: P | GC28: I | GD28: EQ | GE28: 20150930 | GF28: 30/09/2015 | GJ28: 0 | GL28: 0 | GN28: 0 | GO28: Target date 1 | GP28: 60 | GS28: ZEMP_STRT | GT28: 20150930 | HW28: 11 | HX28: 0000000105
AE29: 9 | AF29: DA4HOQG67K82A435KQRFMPDDL | AG29: Ethnicity Breakdown - Rev 2011 | AI29: X | AJ29: X | AK29: 0001 | AR29: U | AT29: 00 | AY29: K | AZ29: DA4HOQG67K82A435KQRFMPDDL | BA29: A | BJ29: 00000000 | BK29: 0000 | BL29: X | BM29: 0 | BR29: 0 | BS29: 0 | BT29: 0 | BU29: 0 | BV29: 0 | CB29: DA4HOQG67K82A435KQRFMPDDL | CI29: 0000 | CM29: 11 | CN29: D4O21W1IBUB3HEML1KWP5YGOP | CO29: D4O21W1IBUH8YD8NLWDLPDMUX | CP29: Grade 9 - 15 F/T | CQ29: 0013 | CS29: S | CU29: L | DG29: 11 | DH29: 0CNTRCTTYPE | DI29: 0CNTRCTISFT | DJ29: Fixed-Term Contract | DK29: 0000 | DL29: X | DM29: 2 | DN29: 0 | DO29: 0 | DT29: 0000 | EA29: 11 | EB29: D4O21W1IBUDEJ9LV077JD8NI1 | EC29: DA4HWYL5HGT0050M6CGMF31MH | EI29: 00 | EJ29: X | EK29: 0 | EL29: 0 | FY29: 5 | FZ29: ZP_ORGUN | GA29: 2 | GB29: M | GJ29: 0 | GL29: 0 | GN29: 0 | GO29: Org Unit Hierarchy (Selection option, optional) | GP29: 60 | GS29: 0ORGUNIT | HW29: 11 | HX29: 0000000106
AE30: 9 | AF30: D4O21W1IBUB3HEML1KWP5YGOP | AG30: WP Bandings | AI30: X | AJ30: Y | AK30: 0001 | AR30: U | AT30: 00 | AY30: K | AZ30: D4O21W1IBUB3HEML1KWP5YGOP | BA30: A | BJ30: 00000000 | BK30: 0000 | BM30: 0 | BR30: 0 | BS30: 0 | BT30: 0 | BU30: 0 | BV30: 0 | CB30: D4O21W1IBUB3HEML1KWP5YGOP | CI30: 0000 | CM30: 11 | CN30: DA4HOQG67K82A435KQRFMPDDL | CO30: DA4HOQG67KFR4BCQS53KAZC3D | CP30: Chinese | CQ30: 0014 | CS30: S | CU30: L | CV30: X | DG30: 10 | DH30: 0ORGUNIT | DI30: 0BBPPURGRPX | DJ30: Ind.Purchasing Group | DK30: 0000 | DL30: X | DM30: 2 | DN30: 0 | DO30: 0 | DT30: 0000 | EA30: 11 | EB30: D4O21W1IBUDEJ9LV077JD8NI1 | EC30: DA4IKULODJ1MZ318V3RCW3FND | EI30: 00 | EJ30: X | EK30: 0 | EL30: 0 | FY30: 5 | FZ30: ZBUDH | GA30: 1 | GB30: P | GC30: I | GD30: EQ | GE30: 20150930 | GF30: 30/09/2015 | GJ30: 0 | GL30: 0 | GN30: 0 | GO30: Master Data Key Date | GP30: 60 | GS30: 0DATE | GT30: 20150930 | HW30: 11 | HX30: 0000000112 | HY30: 0
AE31: 8 | AF31: 0PAYRL_AREA | AG31: Payroll Area | AH31: X | AK31: 0001 | AS31: 0 | AT31: 03 | AX31: 00000000 | AY31: K | AZ31: 0PAYRL_AREA | BA31: A | BD31: H | BJ31: 00000000 | BK31: 0000 | BM31: 0 | BR31: 1 | BS31: 1 | BT31: 1 | BU31: 0 | BV31: 0 | CB31: DA4HO01I2JLLJYJEIRTJ2DMNT | CI31: 0000 | CM31: 11 | CN31: D4O21W1IBUB3HEML1KWP5YGOP | CO31: DEN03PYIT5FSSAA2U7ST53H15 | CP31: Grade 9 - 15 P/T | CQ31: 0014 | CS31: S | CU31: L | DG31: 10 | DH31: 0ORGUNIT | DI31: 0BBPPURORGX | DJ31: Ind. Purchasing Org. | DK31: 0000 | DL31: X | DM31: 2 | DN31: 0 | DO31: 0 | DT31: 0000 | EA31: 11 | EB31: D4O21W1IBUDEJ9LV077JD8NI1 | EC31: DA4IKULODJ2ENPD06N6YYITX5 | EI31: 00 | EJ31: X | EK31: 0 | EL31: 0 | FY31: 5 | FZ31: ZZPERAR | GA31: 1 | GB31: M | GJ31: 0 | GL31: 0 | GN31: 0 | GO31: ZPersonnel Area | GP31: 60 | GS31: ZPERSAREA | HW31: 11 | HX31: 0000000200 | HY31: X
AE32: 8 | AF32: ZPERSAREA | AG32: ZPersonal Area | AH32: X | AK32: 0002 | AM32: Education | AS32: 2 | AT32: 03 | AX32: 00000000 | AY32: K | AZ32: ZPERSAREA | BA32: A | BD32: H | BJ32: 00000000 | BK32: 0000 | BM32: 0 | BO32: 1 | BR32: 1 | BS32: 1 | BT32: 1 | BU32: 0 | BV32: 0 | CB32: DA4HO01I2JMD8KV5UB954T0XL | CI32: 0000 | CM32: 11 | CN32: DA4HOQG67K82A435KQRFMPDDL | CO32: DA4HOQG67KHAHK09F7YSFU4MX | CP32: Other Asian Background | CQ32: 0015 | CS32: S | CU32: L | CV32: X | DG32: 10 | DH32: 0ORGUNIT | DI32: 0BBP_BUYID | DJ32: Buyer ID | DK32: 0000 | DL32: X | DM32: 5 | DN32: 0 | DO32: 0 | DT32: 0000 | EA32: 11 | EB32: D4O21W1IBUE67VXMBQN5FO1RT | EC32: DA4HOQG67K8TYQEWWA71P4RND | EI32: 00 | EJ32: X | EK32: 0 | EL32: 0 | FY32: 4 | FZ32: ZS_DT_1 | GA32: 1 | GB32: P | GC32: I | GD32: EQ | GE32: 20150930 | GF32: 30/09/2015 | GJ32: 0 | GL32: 0 | GN32: 0 | GO32: Target date 1 | GP32: 60 | GS32: ZEMP_STRT | GT32: 20150930 | HW32: 11 | HX32: 0000004000 | HY32: X
AE33: 8 | AF33: 0ORGUNIT | AG33: Organizational Unit | AH33: X | AK33: 0003 | AS33: 1 | AT33: 03 | AU33: X | AV33: ORGEH | AW33: 000 | AX33: 20150930 | AY33: K | AZ33: 0ORGUNIT | BA33: A | BD33: H | BE33: 0ORGUNIT | BF33: A | BJ33: 00000000 | BK33: 0000 | BM33: 0 | BQ33: 2 | BR33: 1 | BS33: 1 | BT33: 1 | BU33: 0 | BV33: 0 | CB33: DA4HO01I2JN4X76X5UOR78F7D | CI33: 0000 | CM33: 11 | CN33: D4O21W1IBUB3HEML1KWP5YGOP | CO33: D4O21W1IBUO63Y6HHRA4B87AX | CP33: Grade 9 - 15 Total | CQ33: 0015 | CS33: S | CU33: L | DG33: 10 | DH33: 0ORGUNIT | DI33: 0BBP_ISCOMP | DJ33: Organizational Unit is Company | DK33: 0000 | DL33: X | DM33: 1 | DN33: 0 | DO33: 0 | DT33: 0000 | EA33: 11 | EB33: D4O21W1IBUE67VXMBQN5FO1RT | EC33: DA4HOQG67K9LNCQO7TMNRK5X5 | EI33: 00 | EJ33: X | EK33: 0 | EL33: 0 | FY33: 4 | FZ33: ZS_PSAR2 | GA33: 1 | GB33: P | GJ33: 0 | GL33: 0 | GN33: 0 | GO33: Pers. Sub-Area - optional | GP33: 60 | GS33: 0PERS_SAREA | HW33: 11 | HX33: 0000009001 | HY33: Workforce Profile Ethnicity Breakdown (2011) Revised
AE34: 8 | AF34: 0PERS_SAREA | AG34: Personnel Subarea | AH34: X | AK34: 0004 | AR34: U | AS34: 1 | AT34: 03 | AX34: 00000000 | AY34: K | AZ34: 0PERS_SAREA | BA34: A | BD34: H | BJ34: 00000000 | BK34: 0000 | BM34: 0 | BR34: 1 | BS34: 1 | BT34: 1 | BU34: 0 | BV34: 0 | CB34: DA4HO01I2JNWLTIOHE4D9NTH5 | CI34: 0000 | CM34: 11 | CN34: DA4HOQG67K82A435KQRFMPDDL | CO34: DA4HOQG67KI266C0QREEI9IWP | CP34: Asian Total | CQ34: 0016 | CR34: X | CS34: S | CU34: L | CV34: X | DG34: 10 | DH34: 0ORGUNIT | DI34: 0BUS_AREA | DJ34: Business area | DK34: 0000 | DL34: X | DM34: 0 | DN34: 0 | DO34: 0 | DT34: 0000 | EA34: 11 | EB34: D4O21W1IBUE67VXMBQN5FO1RT | EC34: DA4HOQG67KADBZ2FJD29TZK6X | EI34: 00 | EJ34: X | EK34: 0 | EL34: 0 | FY34: 4 | FZ34: ZP_ORGUN | GA34: 2 | GB34: M | GJ34: 0 | GL34: 0 | GN34: 0 | GO34: Org Unit Hierarchy (Selection option, optional) | GP34: 60 | GS34: 0ORGUNIT | HW34: 11 | HX34: 0000000114 | HY34: 1
AE35: 8 | AF35: ZTEILK | AG35: Checkbox for Part-Ti | AH35: X | AK35: 0005 | AS35: 1 | AT35: 03 | AX35: 00000000 | AY35: K | AZ35: ZTEILK | BA35: A | BD35: H | BJ35: 00000000 | BK35: 0000 | BM35: 0 | BR35: 1 | BS35: 1 | BT35: 1 | BU35: 0 | BV35: 0 | CB35: DA4HO01I2JOOAFUFSXJZC37QX | CI35: 0000 | CM35: 11 | CN35: D4O21W1IBUB3HEML1KWP5YGOP | CO35: D4O21W1IBUGH9QWWACXZMY8L5 | CP35: ACZ Grade 9 - 15 F/T | CQ35: 0016 | CS35: S | CU35: L | DG35: 10 | DH35: 0ORGUNIT | DI35: 0COMP_CODE | DJ35: Company code | DK35: 0000 | DL35: X | DM35: 0 | DN35: 0 | DO35: 0 | DT35: 0000 | EA35: 11 | EB35: D4O21W1IBUE67VXMBQN5FO1RT | EC35: DA4HOQG67KBWP7PY6FXHYUCQH | EI35: 00 | EJ35: X | EK35: 0 | EL35: 0 | FY35: 4 | FZ35: ZBUDH | GA35: 1 | GB35: P | GC35: I | GD35: EQ | GE35: 20150930 | GF35: 30/09/2015 | GJ35: 0 | GL35: 0 | GN35: 0 | GO35: Master Data Key Date | GP35: 60 | GS35: 0DATE | GT35: 20150930 | HW35: 10 | HX35: 0000000107 | HY35: DA4HO01I2JEOEDLKMWX0GJ27T
AE36: 8 | AF36: ZPRIM_ID | AG36: ZPrimary Employee ID | AH36: X | AK36: 0006 | AS36: 2 | AT36: 03 | AX36: 00000000 | AY36: K | AZ36: ZPRIM_ID | BA36: A | BD36: H | BJ36: 00000000 | BK36: 0000 | BM36: 0 | BR36: 1 | BS36: 1 | BT36: 1 | BU36: 0 | BV36: 0 | CB36: DA4HO01I2JPFZ2674GZLEIM0P | CI36: 0000 | CM36: 11 | CN36: DA4HOQG67K82A435KQRFMPDDL | CO36: DA4HOQG67KITUSNS2AU0KOX6H | CP36: African | CQ36: 0017 | CS36: S | CU36: L | CV36: X | DG36: 10 | DH36: 0ORGUNIT | DI36: 0CO_MST_AR | DJ36: Controlling Area of Master Cost Center | DK36: 0000 | DL36: X | DM36: 0 | DN36: 0 | DO36: 0 | DT36: 0000 | EA36: 11 | EB36: D4O21W1IBUE67VXMBQN5FO1RT | EC36: DA4HOQG67KCODU1PHZD419R09 | EI36: 00 | EJ36: X | EK36: 0 | EL36: 0 | FY36: 4 | FZ36: ZZPERAR | GA36: 1 | GB36: M | GJ36: 0 | GL36: 0 | GN36: 0 | GO36: ZPersonnel Area | GP36: 60 | GS36: ZPERSAREA | HW36: 10 | HX36: 0000000100 | HY36: X
AE37: 8 | AF37: 0CNTRCTTYPE | AG37: Contract Type | AH37: X | AK37: 0007 | AS37: 1 | AT37: 03 | AX37: 00000000 | AY37: K | AZ37: 0CNTRCTTYPE | BA37: A | BD37: H | BJ37: 00000000 | BK37: 0000 | BM37: 0 | BR37: 1 | BS37: 1 | BT37: 1 | BU37: 0 | BV37: 0 | CB37: DB0ZCI83WEWAMKG013IL0HDDL | CI37: 0000 | CM37: 11 | CN37: D4O21W1IBUB3HEML1KWP5YGOP | CO37: D4O21W1IBUNEFBUQ67UI8ST15 | CP37: ACZ Grade 9 - 15 P/T | CQ37: 0017 | CS37: S | CU37: L | DG37: 10 | DH37: 0ORGUNIT | DI37: 0CRMSALGRPX | DJ37: Sls Group: Indicator | DK37: 0000 | DL37: X | DM37: 2 | DN37: 0 | DO37: 0 | DT37: 0000 | EA37: 11 | EB37: D4O21W1IBUE67VXMBQN5FO1RT | EC37: DA4HOQG67KDG2GDGTISQ3P5A1 | EI37: 00 | EJ37: X | EK37: 0 | EL37: 0 | HW37: 10 | HX37: 0000000101
AE38: 8 | AF38: DA4HOQG67K82A435KQRFMPDDL | AG38: Ethnicity Breakdown - Rev 2011 | AI38: X | AJ38: X | AK38: 0001 | AR38: U | AT38: 00 | AY38: K | AZ38: DA4HOQG67K82A435KQRFMPDDL | BA38: A | BJ38: 00000000 | BK38: 0000 | BL38: X | BM38: 0 | BR38: 0 | BS38: 0 | BT38: 0 | BU38: 0 | BV38: 0 | CB38: DA4HOQG67K82A435KQRFMPDDL | CI38: 0000 | CM38: 11 | CN38: D4O21W1IBUB3HEML1KWP5YGOP | CO38: DEN04FDC1K04NBJW47LA7T915 | CP38: ACZ Grade 9 - 15 Total | CQ38: 0018 | CS38: S | CU38: L | DG38: 10 | DH38: 0ORGUNIT | DI38: 0CRMSALOFFX | DJ38: Sls Office:Indicator | DK38: 0000 | DL38: X | DM38: 2 | DN38: 0 | DO38: 0 | DT38: 0000 | EA38: 11 | EB38: D4O21W1IBUE67VXMBQN5FO1RT | EC38: DA4HOQG67KE7R2P8528C64JJT | EI38: 00 | EJ38: X | EK38: 0 | EL38: 0 | HW38: 10 | HX38: 0000000104 | HY38: 1
AE39: 8 | AF39: D4O21W1IBUB3HEML1KWP5YGOP | AG39: WP Bandings | AI39: X | AJ39: Y | AK39: 0001 | AR39: U | AT39: 00 | AY39: K | AZ39: D4O21W1IBUB3HEML1KWP5YGOP | BA39: A | BJ39: 00000000 | BK39: 0000 | BM39: 0 | BR39: 0 | BS39: 0 | BT39: 0 | BU39: 0 | BV39: 0 | CB39: D4O21W1IBUB3HEML1KWP5YGOP | CI39: 0000 | CM39: 11 | CN39: DA4HOQG67K82A435KQRFMPDDL | CO39: DA4IKULODJ1MZ318V3RCW3FND | CP39: Other African Background | CQ39: 0018 | CS39: S | CU39: L | CV39: X | DG39: 10 | DH39: 0ORGUNIT | DI39: 0CRMSALORGX | DJ39: Sales Org. Indicator | DK39: 0000 | DL39: X | DM39: 2 | DN39: 0 | DO39: 0 | DT39: 0000 | EA39: 11 | EB39: D4O21W1IBUE67VXMBQN5FO1RT | EC39: DA4HOQG67KEZFP0ZGLNY8JXTL | EI39: 00 | EJ39: X | EK39: 0 | EL39: 0 | HW39: 10 | HX39: 0000000103
AE40: 7 | AF40: 0PAYRL_AREA | AG40: Payroll Area | AH40: X | AK40: 0001 | AS40: 0 | AT40: 03 | AX40: 00000000 | AY40: K | AZ40: 0PAYRL_AREA | BA40: A | BD40: H | BJ40: 00000000 | BK40: 0000 | BM40: 0 | BR40: 1 | BS40: 1 | BT40: 1 | BU40: 0 | BV40: 0 | CB40: DA4HO01I2JLLJYJEIRTJ2DMNT | CI40: 0000 | CM40: 11 | CN40: D4O21W1IBUB3HEML1KWP5YGOP | CO40: D4O21W1IBUWMMRRU0P1V1XKAH | CP40: Other (Not Migrated) F/T | CQ40: 0019 | CS40: F | CU40: L | DG40: 10 | DH40: 0ORGUNIT | DI40: 0CRMSRVTGRP | DJ40: Ex. CRM Service Org. | DK40: 0000 | DL40: X | DM40: 1 | DN40: 0 | DO40: 0 | DT40: 0000 | EA40: 11 | EB40: D4O21W1IBUE67VXMBQN5FO1RT | EC40: DA4HOQG67KFR4BCQS53KAZC3D | EI40: 00 | EJ40: X | EK40: 0 | EL40: 0 | HW40: 10 | HX40: 0000000102 | HY40: 1
AE41: 7 | AF41: ZPERSAREA | AG41: ZPersonal Area | AH41: X | AK41: 0002 | AM41: Development and Regeneration | AS41: 2 | AT41: 03 | AX41: 00000000 | AY41: K | AZ41: ZPERSAREA | BA41: A | BD41: H | BJ41: 00000000 | BK41: 0000 | BM41: 0 | BO41: 1 | BR41: 1 | BS41: 1 | BT41: 1 | BU41: 0 | BV41: 0 | CB41: DA4HO01I2JMD8KV5UB954T0XL | CI41: 0000 | CM41: 11 | CN41: DA4HOQG67K82A435KQRFMPDDL | CO41: DA4IKULODJ2ENPD06N6YYITX5 | CP41: Caribbean | CQ41: 0019 | CS41: S | CU41: L | CV41: X | DG41: 10 | DH41: 0ORGUNIT | DI41: 0CRM_SALGRP | DJ41: CRM Sales Group | DK41: 0000 | DL41: X | DM41: 1 | DN41: 0 | DO41: 0 | DT41: 0000 | EA41: 11 | EB41: D4O21W1IBUE67VXMBQN5FO1RT | EC41: DA4HOQG67KGISXOI3OJ6DEQD5 | EI41: 00 | EJ41: X | EK41: 0 | EL41: 0 | HW41: 10 | HX41: 0000000108
AE42: 7 | AF42: 0ORGUNIT | AG42: Organizational Unit | AH42: X | AK42: 0003 | AS42: 1 | AT42: 03 | AU42: X | AV42: ORGEH | AW42: 000 | AX42: 20150930 | AY42: K | AZ42: 0ORGUNIT | BA42: A | BD42: H | BE42: 0ORGUNIT | BF42: A | BJ42: 00000000 | BK42: 0000 | BM42: 0 | BQ42: 2 | BR42: 1 | BS42: 1 | BT42: 1 | BU42: 0 | BV42: 0 | CB42: DA4HO01I2JN4X76X5UOR78F7D | CI42: 0000 | CM42: 11 | CN42: DA4HOQG67K82A435KQRFMPDDL | CO42: DA4HOQG67KJLJEZJDU9MN4BG9 | CP42: Black | CQ42: 0020 | CS42: S | CU42: L | CV42: X | DG42: 10 | DH42: 0ORGUNIT | DI42: 0CRM_SALOFF | DJ42: CRM Sales Office | DK42: 0000 | DL42: X | DM42: 1 | DN42: 0 | DO42: 0 | DT42: 0000 | EA42: 11 | EB42: D4O21W1IBUE67VXMBQN5FO1RT | EC42: DA4HOQG67KHAHK09F7YSFU4MX | EI42: 00 | EJ42: X | EK42: 0 | EL42: 0 | HW42: 10 | HX42: 0000009002 | HY42: D4O21W1IBUB3HEML1KWP5YGOP
AE43: 7 | AF43: 0PERS_SAREA | AG43: Personnel Subarea | AH43: X | AK43: 0004 | AR43: U | AS43: 1 | AT43: 03 | AX43: 00000000 | AY43: K | AZ43: 0PERS_SAREA | BA43: A | BD43: H | BJ43: 00000000 | BK43: 0000 | BM43: 0 | BR43: 1 | BS43: 1 | BT43: 1 | BU43: 0 | BV43: 0 | CB43: DA4HO01I2JNWLTIOHE4D9NTH5 | CI43: 0000 | CM43: 11 | CN43: D4O21W1IBUB3HEML1KWP5YGOP | CO43: DEN07Y1DTSNAWTLQYCBLILED5 | CP43: Other (Not Migrated) P/T | CQ43: 0020 | CS43: F | CU43: L | DG43: 10 | DH43: 0ORGUNIT | DI43: 0CRM_SALORG | DJ43: CRM Sales Org. | DK43: 0000 | DL43: X | DM43: 1 | DN43: 0 | DO43: 0 | DT43: 0000 | EA43: 11 | EB43: D4O21W1IBUE67VXMBQN5FO1RT | EC43: DA4HOQG67KI266C0QREEI9IWP | EI43: 00 | EJ43: X | EK43: 0 | EL43: 0 | HW43: 10 | HX43: 0000009000
AE44: 7 | AF44: ZTEILK | AG44: Checkbox for Part-Ti | AH44: X | AK44: 0005 | AS44: 1 | AT44: 03 | AX44: 00000000 | AY44: K | AZ44: ZTEILK | BA44: A | BD44: H | BJ44: 00000000 | BK44: 0000 | BM44: 0 | BR44: 1 | BS44: 1 | BT44: 1 | BU44: 0 | BV44: 0 | CB44: DA4HO01I2JOOAFUFSXJZC37QX | CI44: 0000 | CM44: 11 | CN44: D4O21W1IBUB3HEML1KWP5YGOP | CO44: DEN07Y1DTSPLYOL0WYMFPVL6H | CP44: Other (Not Migrated) Total | CQ44: 0021 | CS44: F | CU44: L | DG44: 10 | DH44: 0ORGUNIT | DI44: 0CRM_SRVORG | DJ44: Service Org. CRM | DK44: 0000 | DL44: X | DM44: 1 | DN44: 0 | DO44: 0 | DT44: 0000 | EA44: 11 | EB44: D4O21W1IBUE67VXMBQN5FO1RT | EC44: DA4HOQG67KITUSNS2AU0KOX6H | EI44: 00 | EJ44: X | EK44: 0 | EL44: 0 | HW44: 10 | HX44: 0000000010
AE45: 7 | AF45: ZPRIM_ID | AG45: ZPrimary Employee ID | AH45: X | AK45: 0006 | AS45: 2 | AT45: 03 | AX45: 00000000 | AY45: K | AZ45: ZPRIM_ID | BA45: A | BD45: H | BJ45: 00000000 | BK45: 0000 | BM45: 0 | BR45: 1 | BS45: 1 | BT45: 1 | BU45: 0 | BV45: 0 | CB45: DA4HO01I2JPFZ2674GZLEIM0P | CI45: 0000 | CM45: 11 | CN45: DA4HOQG67K82A435KQRFMPDDL | CO45: DA4HOQG67KKD81BAPDP8PJPQ1 | CP45: Other Caribbean / Black Background | CQ45: 0021 | CS45: S | CU45: L | CV45: X | DG45: 10 | DH45: 0ORGUNIT | DI45: 0LOGSYS | DJ45: Source System | DK45: 0000 | DL45: X | DM45: 1 | DN45: 0 | DO45: 0 | DT45: 0000 | EA45: 11 | EB45: D4O21W1IBUE67VXMBQN5FO1RT | EC45: DA4HOQG67KJLJEZJDU9MN4BG9 | EI45: 00 | EJ45: X | EK45: 0 | EL45: 0 | HW45: 10 | HX45: 0000000021
AE46: 7 | AF46: 0CNTRCTTYPE | AG46: Contract Type | AH46: X | AK46: 0007 | AS46: 1 | AT46: 03 | AX46: 00000000 | AY46: K | AZ46: 0CNTRCTTYPE | BA46: A | BD46: H | BJ46: 00000000 | BK46: 0000 | BM46: 0 | BR46: 1 | BS46: 1 | BT46: 1 | BU46: 0 | BV46: 0 | CB46: DB0ZCI83WEWAMKG013IL0HDDL | CI46: 0000 | CM46: 11 | CN46: DA4HOQG67K82A435KQRFMPDDL | CO46: DA4HOQG67KL4WNN20X4URZ3ZT | CP46: Black Total | CQ46: 0022 | CR46: X | CS46: S | CU46: L | CV46: X | DG46: 10 | DH46: 0ORGUNIT | DI46: 0MAST_CCTR | DJ46: Master Cost Center | DK46: 0000 | DL46: X | DM46: 0 | DN46: 0 | DO46: 0 | DT46: 0000 | EA46: 11 | EB46: D4O21W1IBUE67VXMBQN5FO1RT | EC46: DA4HOQG67KKD81BAPDP8PJPQ1 | EI46: 00 | EJ46: X | EK46: 0 | EL46: 0 | HW46: 10 | HX46: 0000000022
AE47: 7 | AF47: DA4HOQG67K82A435KQRFMPDDL | AG47: Ethnicity Breakdown - Rev 2011 | AI47: X | AJ47: X | AK47: 0001 | AR47: U | AT47: 00 | AY47: K | AZ47: DA4HOQG67K82A435KQRFMPDDL | BA47: A | BJ47: 00000000 | BK47: 0000 | BL47: X | BM47: 0 | BR47: 0 | BS47: 0 | BT47: 0 | BU47: 0 | BV47: 0 | CB47: DA4HOQG67K82A435KQRFMPDDL | CI47: 0000 | CM47: 11 | CN47: D4O21W1IBUB3HEML1KWP5YGOP | CO47: D4O21W1IBUY600FCNRX36SCU1 | CP47: Total Teaching Staff F/T | CQ47: 0022 | CS47: S | CU47: L | DG47: 10 | DH47: 0ORGUNIT | DI47: 0PERS_AREA | DJ47: Personnel Area | DK47: 0000 | DL47: X | DM47: 1 | DN47: 0 | DO47: 0 | DT47: 0000 | EA47: 11 | EB47: D4O21W1IBUE67VXMBQN5FO1RT | EC47: DA4HOQG67KL4WNN20X4URZ3ZT | EI47: 00 | EJ47: X | EK47: 0 | EL47: 0 | HW47: 10 | HX47: 0000000023
AE48: 7 | AF48: D4O21W1IBUB3HEML1KWP5YGOP | AG48: WP Bandings | AI48: X | AJ48: Y | AK48: 0001 | AR48: U | AT48: 00 | AY48: K | AZ48: D4O21W1IBUB3HEML1KWP5YGOP | BA48: A | BJ48: 00000000 | BK48: 0000 | BM48: 0 | BR48: 0 | BS48: 0 | BT48: 0 | BU48: 0 | BV48: 0 | CB48: D4O21W1IBUB3HEML1KWP5YGOP | CI48: 0000 | CM48: 11 | CN48: D4O21W1IBUB3HEML1KWP5YGOP | CO48: DEN0OSIFULCZTDTFE8U7RBQIH | CP48: Total Teaching Staff P/T | CQ48: 0023 | CS48: S | CU48: L | DG48: 10 | DH48: 0ORGUNIT | DI48: 0PERS_SAREA | DJ48: Personnel Subarea | DK48: 0000 | DL48: X | DM48: 1 | DN48: 0 | DO48: 0 | DT48: 0000 | EA48: 11 | EB48: D4O21W1IBUE67VXMBQN5FO1RT | EC48: DA4HOQG67KLWL9YTCGKGUEI9L | EI48: 00 | EJ48: X | EK48: 0 | EL48: 0 | HW48: 10 | HX48: 0000000030
AE49: 6 | AF49: 0PAYRL_AREA | AG49: Payroll Area | AH49: X | AK49: 0001 | AS49: 0 | AT49: 03 | AX49: 00000000 | AY49: K | AZ49: 0PAYRL_AREA | BA49: A | BD49: H | BJ49: 00000000 | BK49: 0000 | BM49: 0 | BR49: 1 | BS49: 1 | BT49: 1 | BU49: 0 | BV49: 0 | CB49: DA4HO01I2JLLJYJEIRTJ2DMNT | CI49: 0000 | CM49: 11 | CN49: DA4HOQG67K82A435KQRFMPDDL | CO49: DA4HOQG67KLWL9YTCGKGUEI9L | CP49: Total Black & Ethnic Employees | CQ49: 0023 | CR49: X | CS49: S | CU49: L | CV49: X | DG49: 10 | DH49: 0ORGUNIT | DI49: 0PLANT | DJ49: Plant | DK49: 0000 | DL49: X | DM49: 0 | DN49: 0 | DO49: 0 | DT49: 0000 | EA49: 11 | EB49: D4O21W1IBUE67VXMBQN5FO1RT | EC49: DA4HOQG67KMO9WAKO002WTWJD | EI49: 00 | EJ49: X | EK49: 0 | EL49: 0 | HW49: 10 | HX49: 0000000040
AE50: 6 | AF50: ZPERSAREA | AG50: ZPersonal Area | AH50: X | AK50: 0002 | AS50: 2 | AT50: 03 | AX50: 00000000 | AY50: K | AZ50: ZPERSAREA | BA50: A | BD50: H | BJ50: 00000000 | BK50: 0000 | BM50: 0 | BR50: 1 | BS50: 1 | BT50: 1 | BU50: 0 | BV50: 0 | CB50: DA4HO01I2JMD8KV5UB954T0XL | CI50: 0000 | CM50: 11 | CN50: D4O21W1IBUB3HEML1KWP5YGOP | CO50: DEN0OSIFULDRI056PS9TTR4S9 | CP50: Total Teaching Staff | CQ50: 0024 | CS50: S | CU50: L | DG50: 10 | DH50: 0ORGUNIT | DI50: 0PURCH_ORG | DJ50: Purchasing org. | DK50: 0000 | DL50: X | DM50: 0 | DN50: 0 | DO50: 0 | DT50: 0000 | EA50: 11 | EB50: D4O21W1IBUE67VXMBQN5FO1RT | EC50: DA4HOQG67KNFYIMBZJFOZ9AT5 | EE50: 2 | EI50: 00 | EJ50: X | EK50: 0 | EL50: 0 | HW50: 10 | HX50: 0000000041
AE51: 6 | AF51: 0ORGUNIT | AG51: Organizational Unit | AH51: X | AK51: 0003 | AM51: Corporate Services | AS51: 1 | AT51: 03 | AU51: X | AV51: ORGEH | AW51: 000 | AX51: 20150930 | AY51: K | AZ51: 0ORGUNIT | BA51: A | BD51: H | BE51: 0ORGUNIT | BF51: A | BJ51: 00000000 | BK51: 0000 | BM51: 0 | BO51: 1 | BQ51: 2 | BR51: 1 | BS51: 1 | BT51: 1 | BU51: 0 | BV51: 0 | CB51: DA4HO01I2JN4X76X5UOR78F7D | CI51: 0000 | CM51: 11 | CN51: DA4HOQG67K82A435KQRFMPDDL | CO51: DA4HOQG67KMO9WAKO002WTWJD | CP51: Total Non Disclosed | CQ51: 0024 | CS51: S | CU51: L | CV51: X | DG51: 10 | DH51: 0ORGUNIT | DI51: 0PUR_GROUP | DJ51: Purchasing group | DK51: 0000 | DL51: X | DM51: 0 | DN51: 0 | DO51: 0 | DT51: 0000 | EA51: 11 | EB51: D4O21W1IBUE67VXMBQN5FO1RT | EC51: DA4HOQG67KO7N4Y3B2VB1OP2X | EI51: 00 | EJ51: X | EK51: 0 | EL51: 0 | HW51: 10 | HX51: 0000000042 | HY51: 0
AE52: 6 | AF52: 0PERS_SAREA | AG52: Personnel Subarea | AH52: X | AK52: 0004 | AR52: U | AS52: 1 | AT52: 03 | AX52: 00000000 | AY52: K | AZ52: 0PERS_SAREA | BA52: A | BD52: H | BJ52: 00000000 | BK52: 0000 | BM52: 0 | BR52: 1 | BS52: 1 | BT52: 1 | BU52: 0 | BV52: 0 | CB52: DA4HO01I2JNWLTIOHE4D9NTH5 | CI52: 0000 | CM52: 11 | CN52: DA4HOQG67K82A435KQRFMPDDL | CO52: DA4HOQG67KNFYIMBZJFOZ9AT5 | CP52: Total White Employees % | CQ52: 0025 | CR52: X | CS52: F | CU52: L | DG52: 10 | DH52: 0ORGUNIT | DI52: 0SALESORG | DJ52: Sales Organization | DK52: 0000 | DL52: X | DM52: 0 | DN52: 0 | DO52: 0 | DT52: 0000 | EA52: 11 | EB52: D4O21W1IBUE67VXMBQN5FO1RT | EC52: DA4HOQG67KOZBR9UMMAX443CP | EE52: 2 | EI52: 00 | EJ52: X | EK52: 0 | EL52: 0 | HW52: 10 | HX52: 0000000043 | HY52: 0
AE53: 6 | AF53: ZTEILK | AG53: Checkbox for Part-Ti | AH53: X | AK53: 0005 | AS53: 1 | AT53: 03 | AX53: 00000000 | AY53: K | AZ53: ZTEILK | BA53: A | BD53: H | BJ53: 00000000 | BK53: 0000 | BM53: 0 | BR53: 1 | BS53: 1 | BT53: 1 | BU53: 0 | BV53: 0 | CB53: DA4HO01I2JOOAFUFSXJZC37QX | CI53: 0000 | CM53: 11 | CN53: D4O21W1IBUB3HEML1KWP5YGOP | CO53: DEN0OSIFULEJ6MGY1BPFW6J21 | CP53: Total Non-Teaching Staff F/T | CQ53: 0025 | CS53: S | CU53: L | DG53: 10 | DH53: 0ORGUNIT | DI53: 0SALES_GRP | DJ53: Sales group | DK53: 0000 | DL53: X | DM53: 0 | DN53: 0 | DO53: 0 | DT53: 0000 | EA53: 11 | EB53: D4O21W1IBUE67VXMBQN5FO1RT | EC53: DA4HOQG67KPR0DLLY5QJ6JHMH | EE53: 2 | EI53: 00 | EJ53: X | EK53: 0 | EL53: 0 | HW53: 10 | HX53: 0000000109 | HY53: 0
AE54: 6 | AF54: ZPRIM_ID | AG54: ZPrimary Employee ID | AH54: X | AK54: 0006 | AS54: 2 | AT54: 03 | AX54: 00000000 | AY54: K | AZ54: ZPRIM_ID | BA54: A | BD54: H | BJ54: 00000000 | BK54: 0000 | BM54: 0 | BR54: 1 | BS54: 1 | BT54: 1 | BU54: 0 | BV54: 0 | CB54: DA4HO01I2JPFZ2674GZLEIM0P | CI54: 0000 | CM54: 11 | CN54: D4O21W1IBUB3HEML1KWP5YGOP | CO54: DEN07Y1DTSOUA299LF6TNG6WP | CP54: Total Non-Teaching Staff P/T | CQ54: 0026 | CS54: S | CU54: L | DG54: 10 | DH54: 0ORGUNIT | DI54: 0SALES_OFF | DJ54: Sales Office | DK54: 0000 | DL54: X | DM54: 0 | DN54: 0 | DO54: 0 | DT54: 0000 | EA54: 11 | EB54: D4O21W1IBUE67VXMBQN5FO1RT | EC54: DA4HQT1FQ21CBCL0CVM3F7BP5 | EI54: 00 | EJ54: X | EK54: 0 | EL54: 0 | HW54: 10 | HX54: 0000000113
AE55: 6 | AF55: 0CNTRCTTYPE | AG55: Contract Type | AH55: X | AK55: 0007 | AS55: 1 | AT55: 03 | AX55: 00000000 | AY55: K | AZ55: 0CNTRCTTYPE | BA55: A | BD55: H | BJ55: 00000000 | BK55: 0000 | BM55: 0 | BR55: 1 | BS55: 1 | BT55: 1 | BU55: 0 | BV55: 0 | CB55: DB0ZCI83WEWAMKG013IL0HDDL | CI55: 0000 | CM55: 11 | CN55: DA4HOQG67K82A435KQRFMPDDL | CO55: DA4HOQG67KOZBR9UMMAX443CP | CP55: Total Black & Ethnic Employees % | CQ55: 0026 | CR55: X | CS55: F | CU55: L | DG55: 10 | DH55: 0CNTRCTTYPE | DI55: 0CNTRCTISFT | DJ55: Fixed-Term Contract | DK55: 0000 | DL55: X | DM55: 2 | DN55: 0 | DO55: 0 | DT55: 0000 | EA55: 11 | EB55: D4O21W1IBUE67VXMBQN5FO1RT | EC55: DA4HQT1FQ223ZYWROF1PHMPYX | EI55: 00 | EJ55: X | EK55: 0 | EL55: 0 | HW55: 10 | HX55: 0000000120
AE56: 6 | AF56: DA4HOQG67K82A435KQRFMPDDL | AG56: Ethnicity Breakdown - Rev 2011 | AI56: X | AJ56: X | AK56: 0001 | AR56: U | AT56: 00 | AY56: K | AZ56: DA4HOQG67K82A435KQRFMPDDL | BA56: A | BJ56: 00000000 | BK56: 0000 | BL56: X | BM56: 0 | BR56: 0 | BS56: 0 | BT56: 0 | BU56: 0 | BV56: 0 | CB56: DA4HOQG67K82A435KQRFMPDDL | CI56: 0000 | CM56: 11 | CN56: D4O21W1IBUB3HEML1KWP5YGOP | CO56: DEN07Y1DTSR5BX8JK1HNUQDQ1 | CP56: Total Non-Teaching Staff | CQ56: 0027 | CS56: S | CU56: L | DG56: 9 | DH56: 0ORGUNIT | DI56: 0BBPPURGRPX | DJ56: Ind.Purchasing Group | DK56: 0000 | DL56: X | DM56: 2 | DN56: 0 | DO56: 0 | DT56: 0000 | EA56: 11 | EB56: D4O21W1IBUE67VXMBQN5FO1RT | EC56: DA4HQT1FQ22VOL8IZYHBK248P | EI56: 00 | EJ56: X | EK56: 0 | EL56: 0 | HW56: 10 | HX56: 0000000121
AE57: 6 | AF57: D4O21W1IBUB3HEML1KWP5YGOP | AG57: WP Bandings | AI57: X | AJ57: Y | AK57: 0001 | AR57: U | AT57: 00 | AY57: K | AZ57: D4O21W1IBUB3HEML1KWP5YGOP | BA57: A | BJ57: 00000000 | BK57: 0000 | BM57: 0 | BR57: 0 | BS57: 0 | BT57: 0 | BU57: 0 | BV57: 0 | CB57: D4O21W1IBUB3HEML1KWP5YGOP | CI57: 0000 | CM57: 11 | CN57: DA4HOQG67K82A435KQRFMPDDL | CO57: DA4HOQG67KPR0DLLY5QJ6JHMH | CP57: Total Non Declared % | CQ57: 0027 | CR57: X | CS57: F | CU57: L | DG57: 9 | DH57: 0ORGUNIT | DI57: 0BBPPURORGX | DJ57: Ind. Purchasing Org. | DK57: 0000 | DL57: X | DM57: 2 | DN57: 0 | DO57: 0 | DT57: 0000 | EA57: 11 | EB57: D4O21W1IBUE67VXMBQN5FO1RT | EC57: DA4HWYL5HGT0050M6CGMF31MH | EI57: 00 | EJ57: X | EK57: 0 | EL57: 0 | HW57: 10 | HX57: 0000010001 | HY57: DA4HO01I2JQZCATPRJUTJDEK9
AE58: 5 | AF58: 0PAYRL_AREA | AG58: Payroll Area | AH58: X | AK58: 0001 | AS58: 0 | AT58: 03 | AX58: 00000000 | AY58: K | AZ58: 0PAYRL_AREA | BA58: A | BD58: H | BJ58: 00000000 | BK58: 0000 | BM58: 0 | BR58: 1 | BS58: 1 | BT58: 1 | BU58: 0 | BV58: 0 | CB58: DA4HO01I2JLLJYJEIRTJ2DMNT | CI58: 0000 | CM58: 11 | CN58: DA4HOQG67K82A435KQRFMPDDL | CO58: DA4HOQG67KO7N4Y3B2VB1OP2X | CP58: Total Workforce | CQ58: 0028 | CR58: X | CS58: S | CU58: L | CV58: X | DG58: 9 | DH58: 0ORGUNIT | DI58: 0BBP_BUYID | DJ58: Buyer ID | DK58: 0000 | DL58: X | DM58: 5 | DN58: 0 | DO58: 0 | DT58: 0000 | EA58: 11 | EB58: D4O21W1IBUE67VXMBQN5FO1RT | EC58: DA4IKULODJ1MZ318V3RCW3FND | EI58: 00 | EJ58: X | EK58: 0 | EL58: 0 | HW58: 10 | HX58: 0000010002 | HY58: DA4HO01I2JEOEDLKMWX0GJ27T
AE59: 5 | AF59: ZPERSAREA | AG59: ZPersonal Area | AH59: X | AK59: 0002 | AS59: 2 | AT59: 03 | AX59: 00000000 | AY59: K | AZ59: ZPERSAREA | BA59: A | BD59: H | BJ59: 00000000 | BK59: 0000 | BM59: 0 | BR59: 1 | BS59: 1 | BT59: 1 | BU59: 0 | BV59: 0 | CB59: DA4HO01I2JMD8KV5UB954T0XL | CI59: 0000 | CM59: 11 | CN59: D4O21W1IBUB3HEML1KWP5YGOP | CO59: D4O21W1IBUXEBE3LC8HH4CYK9 | CP59: Total - All WPBR Grades F/T | CQ59: 0028 | CS59: F | CU59: L | DG59: 9 | DH59: 0ORGUNIT | DI59: 0BBP_ISCOMP | DJ59: Organizational Unit is Company | DK59: 0000 | DL59: X | DM59: 1 | DN59: 0 | DO59: 0 | DT59: 0000 | EA59: 11 | EB59: D4O21W1IBUE67VXMBQN5FO1RT | EC59: DA4IKULODJ2ENPD06N6YYITX5 | EI59: 00 | EJ59: X | EK59: 0 | EL59: 0 | HW59: 10 | HX59: 0000000105
AE60: 5 | AF60: 0ORGUNIT | AG60: Organizational Unit | AH60: X | AK60: 0003 | AM60: Chief Executive Srv, Chief Executive Organisation Structu... | AS60: 1 | AT60: 03 | AU60: X | AV60: ORGEH | AW60: 000 | AX60: 20150930 | AY60: K | AZ60: 0ORGUNIT | BA60: A | BD60: H | BE60: 0ORGUNIT | BF60: A | BJ60: 00000000 | BK60: 0000 | BM60: 0 | BO60: X | BQ60: 2 | BR60: 1 | BS60: 1 | BT60: 1 | BU60: 0 | BV60: 0 | CB60: DA4HO01I2JN4X76X5UOR78F7D | CI60: 0000 | CM60: 11 | CN60: D4O21W1IBUB3HEML1KWP5YGOP | CO60: DEN07Y1DTSO2LFXI9VR7L0SMX | CP60: Total - All WPBR Grades P/T | CQ60: 0029 | CS60: F | CU60: L | DG60: 9 | DH60: 0ORGUNIT | DI60: 0BUS_AREA | DJ60: Business area | DK60: 0000 | DL60: X | DM60: 0 | DN60: 0 | DO60: 0 | DT60: 0000 | EA60: 11 | EB60: D4O21W1IBUEXWI9DNA2RI3G1L | EC60: DA4HOQG67K8TYQEWWA71P4RND | EI60: 00 | EJ60: X | EK60: 0 | EL60: 0 | HW60: 10 | HX60: 0000000106
AE61: 5 | AF61: 0PERS_SAREA | AG61: Personnel Subarea | AH61: X | AK61: 0004 | AR61: U | AS61: 1 | AT61: 03 | AX61: 00000000 | AY61: K | AZ61: 0PERS_SAREA | BA61: A | BD61: H | BJ61: 00000000 | BK61: 0000 | BM61: 0 | BR61: 1 | BS61: 1 | BT61: 1 | BU61: 0 | BV61: 0 | CB61: DA4HO01I2JNWLTIOHE4D9NTH5 | CI61: 0000 | CM61: 11 | CN61: D4O21W1IBUB3HEML1KWP5YGOP | CO61: DEN07Y1DTSQDNAWS8I21SAZG9 | CP61: Total Workforce - All WPBR Grades | CQ61: 0030 | CS61: F | CU61: L | DG61: 9 | DH61: 0ORGUNIT | DI61: 0COMP_CODE | DJ61: Company code | DK61: 0000 | DL61: X | DM61: 0 | DN61: 0 | DO61: 0 | DT61: 0000 | EA61: 11 | EB61: D4O21W1IBUEXWI9DNA2RI3G1L | EC61: DA4HOQG67K9LNCQO7TMNRK5X5 | EI61: 00 | EJ61: X | EK61: 0 | EL61: 0 | HW61: 10 | HX61: 0000000112 | HY61: 0
AE62: 5 | AF62: ZTEILK | AG62: Checkbox for Part-Ti | AH62: X | AK62: 0005 | AS62: 1 | AT62: 03 | AX62: 00000000 | AY62: K | AZ62: ZTEILK | BA62: A | BD62: H | BJ62: 00000000 | BK62: 0000 | BM62: 0 | BR62: 1 | BS62: 1 | BT62: 1 | BU62: 0 | BV62: 0 | CB62: DA4HO01I2JOOAFUFSXJZC37QX | CI62: 0000 | CM62: 11 | CN62: D4O21W1IBUB3HEML1KWP5YGOP | CO62: D4O21W1IBV8XKOZZ5BZO4RWMX | CP62: Total Workforce (All) F/T | CQ62: 0031 | CS62: S | CU62: L | DG62: 9 | DH62: 0ORGUNIT | DI62: 0CO_MST_AR | DJ62: Controlling Area of Master Cost Center | DK62: 0000 | DL62: X | DM62: 0 | DN62: 0 | DO62: 0 | DT62: 0000 | EA62: 11 | EB62: D4O21W1IBUEXWI9DNA2RI3G1L | EC62: DA4HOQG67KADBZ2FJD29TZK6X | EI62: 00 | EJ62: X | EK62: 0 | EL62: 0 | HW62: 10 | HX62: 0000000200 | HY62: X
AE63: 5 | AF63: ZPRIM_ID | AG63: ZPrimary Employee ID | AH63: X | AK63: 0006 | AS63: 2 | AT63: 03 | AX63: 00000000 | AY63: K | AZ63: ZPRIM_ID | BA63: A | BD63: H | BJ63: 00000000 | BK63: 0000 | BM63: 0 | BR63: 1 | BS63: 1 | BT63: 1 | BU63: 0 | BV63: 0 | CB63: DA4HO01I2JPFZ2674GZLEIM0P | CI63: 0000 | CM63: 11 | CN63: D4O21W1IBUB3HEML1KWP5YGOP | CO63: DEN07Y1DTSRX0JKAVKX9X5RZT | CP63: Total Workforce (All) P/T | CQ63: 0032 | CS63: S | CU63: L | DG63: 9 | DH63: 0ORGUNIT | DI63: 0CRMSALGRPX | DJ63: Sls Group: Indicator | DK63: 0000 | DL63: X | DM63: 2 | DN63: 0 | DO63: 0 | DT63: 0000 | EA63: 11 | EB63: D4O21W1IBUEXWI9DNA2RI3G1L | EC63: DA4HOQG67KBWP7PY6FXHYUCQH | EI63: 00 | EJ63: X | EK63: 0 | EL63: 0 | HW63: 10 | HX63: 0000004000 | HY63: X
AE64: 5 | AF64: 0CNTRCTTYPE | AG64: Contract Type | AH64: X | AK64: 0007 | AS64: 1 | AT64: 03 | AX64: 00000000 | AY64: K | AZ64: 0CNTRCTTYPE | BA64: A | BD64: H | BJ64: 00000000 | BK64: 0000 | BM64: 0 | BR64: 1 | BS64: 1 | BT64: 1 | BU64: 0 | BV64: 0 | CB64: DB0ZCI83WEWAMKG013IL0HDDL | CI64: 0000 | CM64: 11 | CN64: D4O21W1IBUB3HEML1KWP5YGOP | CO64: DEN07Y1DTSSOP5W274CVZL69L | CP64: Total Workforce (All) | CQ64: 0033 | CS64: S | CU64: L | DG64: 9 | DH64: 0ORGUNIT | DI64: 0CRMSALOFFX | DJ64: Sls Office:Indicator | DK64: 0000 | DL64: X | DM64: 2 | DN64: 0 | DO64: 0 | DT64: 0000 | EA64: 11 | EB64: D4O21W1IBUEXWI9DNA2RI3G1L | EC64: DA4HOQG67KCODU1PHZD419R09 | EI64: 00 | EJ64: X | EK64: 0 | EL64: 0 | HW64: 10 | HX64: 0000009001 | HY64: Workforce Profile Ethnicity Breakdown (2011) Revised
AE65: 5 | AF65: DA4HOQG67K82A435KQRFMPDDL | AG65: Ethnicity Breakdown - Rev 2011 | AI65: X | AJ65: X | AK65: 0001 | AR65: U | AT65: 00 | AY65: K | AZ65: DA4HOQG67K82A435KQRFMPDDL | BA65: A | BJ65: 00000000 | BK65: 0000 | BL65: X | BM65: 0 | BR65: 0 | BS65: 0 | BT65: 0 | BU65: 0 | BV65: 0 | CB65: DA4HOQG67K82A435KQRFMPDDL | CI65: 0000 | CM65: 10 | CN65: D4O21W1IBUB3HEML1KWP5YGOP | CO65: D4O21W1IBUDEJ9LV077JD8NI1 | CP65: Grade 1 - 4 F/T | CQ65: 0001 | CS65: S | CU65: L | DG65: 9 | DH65: 0ORGUNIT | DI65: 0CRMSALORGX | DJ65: Sales Org. Indicator | DK65: 0000 | DL65: X | DM65: 2 | DN65: 0 | DO65: 0 | DT65: 0000 | EA65: 11 | EB65: D4O21W1IBUEXWI9DNA2RI3G1L | EC65: DA4HOQG67KDG2GDGTISQ3P5A1 | EI65: 00 | EJ65: X | EK65: 0 | EL65: 0 | HW65: 10 | HX65: 0000000114 | HY65: 1
AE66: 5 | AF66: D4O21W1IBUB3HEML1KWP5YGOP | AG66: WP Bandings | AI66: X | AJ66: Y | AK66: 0001 | AR66: U | AT66: 00 | AY66: K | AZ66: D4O21W1IBUB3HEML1KWP5YGOP | BA66: A | BJ66: 00000000 | BK66: 0000 | BM66: 0 | BR66: 0 | BS66: 0 | BT66: 0 | BU66: 0 | BV66: 0 | CB66: D4O21W1IBUB3HEML1KWP5YGOP | CI66: 0000 | CM66: 10 | CN66: DA4HOQG67K82A435KQRFMPDDL | CO66: DA4HOQG67K8TYQEWWA71P4RND | CP66: White Scottish | CQ66: 0001 | CS66: S | CU66: L | CV66: X | DG66: 9 | DH66: 0ORGUNIT | DI66: 0CRMSRVTGRP | DJ66: Ex. CRM Service Org. | DK66: 0000 | DL66: X | DM66: 1 | DN66: 0 | DO66: 0 | DT66: 0000 | EA66: 11 | EB66: D4O21W1IBUEXWI9DNA2RI3G1L | EC66: DA4HOQG67KE7R2P8528C64JJT | EI66: 00 | EJ66: X | EK66: 0 | EL66: 0 | HW66: 9 | HX66: 0000000107 | HY66: DA4HO01I2JEOEDLKMWX0GJ27T
AE67: 4 | AF67: 0PAYRL_AREA | AG67: Payroll Area | AH67: X | AK67: 0001 | AS67: 0 | AT67: 03 | AX67: 00000000 | AY67: K | AZ67: 0PAYRL_AREA | BA67: A | BD67: H | BJ67: 00000000 | BK67: 0000 | BM67: 0 | BR67: 1 | BS67: 1 | BT67: 1 | BU67: 0 | BV67: 0 | CB67: DA4QZTAPZO1XJRJ4SJD8DUNZT | CI67: 0000 | CM67: 10 | CN67: DA4HOQG67K82A435KQRFMPDDL | CO67: DA4HOQG67KADBZ2FJD29TZK6X | CP67: Other British | CQ67: 0002 | CS67: S | CU67: L | CV67: X | DG67: 9 | DH67: 0ORGUNIT | DI67: 0CRM_SALGRP | DJ67: CRM Sales Group | DK67: 0000 | DL67: X | DM67: 1 | DN67: 0 | DO67: 0 | DT67: 0000 | EA67: 11 | EB67: D4O21W1IBUEXWI9DNA2RI3G1L | EC67: DA4HOQG67KEZFP0ZGLNY8JXTL | EI67: 00 | EJ67: X | EK67: 0 | EL67: 0 | HW67: 9 | HX67: 0000000100 | HY67: X
AE68: 4 | AF68: ZPERSAREA | AG68: ZPersonal Area | AH68: X | AK68: 0002 | AS68: 2 | AT68: 03 | AX68: 00000000 | AY68: K | AZ68: ZPERSAREA | BA68: A | BD68: H | BJ68: 00000000 | BK68: 0000 | BM68: 0 | BR68: 1 | BS68: 1 | BT68: 1 | BU68: 0 | BV68: 0 | CB68: DA4QZTAPZO2P8DUW42SUGA29L | CI68: 0000 | CM68: 10 | CN68: D4O21W1IBUB3HEML1KWP5YGOP | CO68: D4O21W1IBUKBOUJOW241Z37Y1 | CP68: Grade 1 - 4 P/T | CQ68: 0002 | CS68: S | CU68: L | DG68: 9 | DH68: 0ORGUNIT | DI68: 0CRM_SALOFF | DJ68: CRM Sales Office | DK68: 0000 | DL68: X | DM68: 1 | DN68: 0 | DO68: 0 | DT68: 0000 | EA68: 11 | EB68: D4O21W1IBUEXWI9DNA2RI3G1L | EC68: DA4HOQG67KFR4BCQS53KAZC3D | EI68: 00 | EJ68: X | EK68: 0 | EL68: 0 | HW68: 9 | HX68: 0000000101
AE69: 4 | AF69: 0ORGUNIT | AG69: Organizational Unit | AH69: X | AK69: 0003 | AS69: 1 | AT69: 03 | AU69: X | AV69: ORGEH | AW69: 000 | AX69: 20150930 | AY69: K | AZ69: 0ORGUNIT | BA69: A | BD69: H | BE69: 0ORGUNIT | BF69: A | BJ69: 00000000 | BK69: 0000 | BM69: 0 | BQ69: 2 | BR69: 1 | BS69: 1 | BT69: 1 | BU69: 0 | BV69: 0 | CB69: DA4QZTAPZO3GX06NFM8GIPGJD | CI69: 0000 | CM69: 10 | CN69: D4O21W1IBUB3HEML1KWP5YGOP | CO69: DEMAFDB5LZ4S252XBVM7GJP4P | CP69: Grade 1 - 4 Total | CQ69: 0003 | CS69: S | CU69: L | DG69: 9 | DH69: 0ORGUNIT | DI69: 0CRM_SALORG | DJ69: CRM Sales Org. | DK69: 0000 | DL69: X | DM69: 1 | DN69: 0 | DO69: 0 | DT69: 0000 | EA69: 11 | EB69: D4O21W1IBUEXWI9DNA2RI3G1L | EC69: DA4HOQG67KGISXOI3OJ6DEQD5 | EI69: 00 | EJ69: X | EK69: 0 | EL69: 0 | HW69: 9 | HX69: 0000000104 | HY69: 1
AE70: 4 | AF70: 0EMPLSGROUP | AG70: Employee Subgroup | AH70: X | AK70: 0004 | AS70: 1 | AT70: 03 | AX70: 00000000 | AY70: K | AZ70: 0EMPLSGROUP | BA70: A | BD70: H | BJ70: 00000000 | BK70: 0000 | BM70: 0 | BR70: 1 | BS70: 1 | BT70: 1 | BU70: 0 | BV70: 0 | CB70: DBCSSWY10IQ4I02GT1AMQN01L | CI70: 0000 | CM70: 10 | CN70: DA4HOQG67K82A435KQRFMPDDL | CO70: DA4HOQG67K9LNCQO7TMNRK5X5 | CP70: Irish | CQ70: 0003 | CS70: S | CU70: L | CV70: X | DG70: 9 | DH70: 0ORGUNIT | DI70: 0CRM_SRVORG | DJ70: Service Org. CRM | DK70: 0000 | DL70: X | DM70: 1 | DN70: 0 | DO70: 0 | DT70: 0000 | EA70: 11 | EB70: D4O21W1IBUEXWI9DNA2RI3G1L | EC70: DA4HOQG67KHAHK09F7YSFU4MX | EI70: 00 | EJ70: X | EK70: 0 | EL70: 0 | HW70: 9 | HX70: 0000000103
AE71: 4 | AF71: 0PERS_SAREA | AG71: Personnel Subarea | AH71: X | AK71: 0005 | AR71: U | AS71: 1 | AT71: 03 | AX71: 00000000 | AY71: K | AZ71: 0PERS_SAREA | BA71: A | BD71: H | BJ71: 00000000 | BK71: 0000 | BM71: 0 | BR71: 1 | BS71: 1 | BT71: 1 | BU71: 0 | BV71: 0 | CB71: DA4QZTAPZO48LMIER5O2L4UT5 | CI71: 0000 | CM71: 10 | CN71: D4O21W1IBUB3HEML1KWP5YGOP | CO71: D4O21W1IBUE67VXMBQN5FO1RT | CP71: Grade 5 - 7 F/T | CQ71: 0004 | CS71: S | CU71: L | DG71: 9 | DH71: 0ORGUNIT | DI71: 0LOGSYS | DJ71: Source System | DK71: 0000 | DL71: X | DM71: 1 | DN71: 0 | DO71: 0 | DT71: 0000 | EA71: 11 | EB71: D4O21W1IBUEXWI9DNA2RI3G1L | EC71: DA4HOQG67KI266C0QREEI9IWP | EI71: 00 | EJ71: X | EK71: 0 | EL71: 0 | HW71: 9 | HX71: 0000000102 | HY71: 1
AE72: 4 | AF72: ZTEILK | AG72: Checkbox for Part-Ti | AH72: X | AK72: 0006 | AS72: 1 | AT72: 03 | AX72: 00000000 | AY72: K | AZ72: ZTEILK | BA72: A | BD72: H | BJ72: 00000000 | BK72: 0000 | BM72: 0 | BR72: 1 | BS72: 1 | BT72: 1 | BU72: 0 | BV72: 0 | CB72: DA4QZTAPZO50A8U62P3ONK92X | CI72: 0000 | CM72: 10 | CN72: DA4HOQG67K82A435KQRFMPDDL | CO72: DA4HQT1FQ21CBCL0CVM3F7BP5 | CP72: Gypsy / Traveller | CQ72: 0004 | CS72: S | CU72: L | CV72: X | DG72: 9 | DH72: 0ORGUNIT | DI72: 0MAST_CCTR | DJ72: Master Cost Center | DK72: 0000 | DL72: X | DM72: 0 | DN72: 0 | DO72: 0 | DT72: 0000 | EA72: 11 | EB72: D4O21W1IBUEXWI9DNA2RI3G1L | EC72: DA4HOQG67KITUSNS2AU0KOX6H | EI72: 00 | EJ72: X | EK72: 0 | EL72: 0 | HW72: 9 | HX72: 0000000108
AE73: 4 | AF73: ZPRIM_ID | AG73: ZPrimary Employee ID | AH73: X | AK73: 0007 | AS73: 2 | AT73: 03 | AX73: 00000000 | AY73: K | AZ73: ZPRIM_ID | BA73: A | BD73: H | BJ73: 00000000 | BK73: 0000 | BM73: 0 | BR73: 1 | BS73: 1 | BT73: 1 | BU73: 0 | BV73: 0 | CB73: DA4QZTAPZO5RYV5XE8JAPZNCP | CI73: 0000 | CM73: 10 | CN73: D4O21W1IBUB3HEML1KWP5YGOP | CO73: D4O21W1IBUL3DGVG7LJO1IM7T | CP73: Grade 5 - 7 P/T | CQ73: 0005 | CS73: S | CU73: L | DG73: 9 | DH73: 0ORGUNIT | DI73: 0PERS_AREA | DJ73: Personnel Area | DK73: 0000 | DL73: X | DM73: 1 | DN73: 0 | DO73: 0 | DT73: 0000 | EA73: 11 | EB73: D4O21W1IBUEXWI9DNA2RI3G1L | EC73: DA4HOQG67KJLJEZJDU9MN4BG9 | EI73: 00 | EJ73: X | EK73: 0 | EL73: 0 | HW73: 9 | HX73: 0000009002 | HY73: D4O21W1IBUB3HEML1KWP5YGOP
AE74: 4 | AF74: 0CNTRCTTYPE | AG74: Contract Type | AH74: X | AK74: 0008 | AS74: 1 | AT74: 03 | AX74: 00000000 | AY74: K | AZ74: 0CNTRCTTYPE | BA74: A | BD74: H | BJ74: 00000000 | BK74: 0000 | BM74: 0 | BR74: 1 | BS74: 1 | BT74: 1 | BU74: 0 | BV74: 0 | CB74: DB0ZDV5QJCUPDSK6MVA2HLK3D | CI74: 0000 | CM74: 10 | CN74: DA4HOQG67K82A435KQRFMPDDL | CO74: DA4HQT1FQ223ZYWROF1PHMPYX | CP74: Polish | CQ74: 0005 | CS74: S | CU74: L | CV74: X | DG74: 9 | DH74: 0ORGUNIT | DI74: 0PERS_SAREA | DJ74: Personnel Subarea | DK74: 0000 | DL74: X | DM74: 1 | DN74: 0 | DO74: 0 | DT74: 0000 | EA74: 11 | EB74: D4O21W1IBUEXWI9DNA2RI3G1L | EC74: DA4HOQG67KKD81BAPDP8PJPQ1 | EI74: 00 | EJ74: X | EK74: 0 | EL74: 0 | HW74: 9 | HX74: 0000009000
AE75: 4 | AF75: DA4HOQG67K82A435KQRFMPDDL | AG75: Ethnicity Breakdown - Rev 2011 | AI75: X | AJ75: X | AK75: 0001 | AR75: U | AT75: 00 | AY75: K | AZ75: DA4HOQG67K82A435KQRFMPDDL | BA75: A | BJ75: 00000000 | BK75: 0000 | BL75: X | BM75: 0 | BR75: 0 | BS75: 0 | BT75: 0 | BU75: 0 | BV75: 0 | CB75: DA4HOQG67K82A435KQRFMPDDL | CI75: 0000 | CM75: 10 | CN75: D4O21W1IBUB3HEML1KWP5YGOP | CO75: DEMAGSP8VDTMCQ2Z9KSRG7UGP | CP75: Grade 5 - 7 Total | CQ75: 0006 | CS75: S | CU75: L | DG75: 9 | DH75: 0ORGUNIT | DI75: 0PLANT | DJ75: Plant | DK75: 0000 | DL75: X | DM75: 0 | DN75: 0 | DO75: 0 | DT75: 0000 | EA75: 11 | EB75: D4O21W1IBUEXWI9DNA2RI3G1L | EC75: DA4HOQG67KL4WNN20X4URZ3ZT | EI75: 00 | EJ75: X | EK75: 0 | EL75: 0 | HW75: 9 | HX75: 0000000010
AE76: 4 | AF76: D4O2P4A3SH8H6WZIVSYIIRP4P | AG76: WP Teachers Bandings | AI76: X | AJ76: Y | AK76: 0001 | AR76: U | AT76: 00 | AY76: K | AZ76: D4O2P4A3SH8H6WZIVSYIIRP4P | BA76: A | BJ76: 00000000 | BK76: 0000 | BM76: 0 | BR76: 0 | BS76: 0 | BT76: 0 | BU76: 0 | BV76: 0 | CB76: D4O2P4A3SH8H6WZIVSYIIRP4P | CI76: 0000 | CM76: 10 | CN76: DA4HOQG67K82A435KQRFMPDDL | CO76: DA4HQT1FQ22VOL8IZYHBK248P | CP76: Other White Ethnic | CQ76: 0006 | CS76: S | CU76: L | CV76: X | DG76: 9 | DH76: 0ORGUNIT | DI76: 0PURCH_ORG | DJ76: Purchasing org. | DK76: 0000 | DL76: X | DM76: 0 | DN76: 0 | DO76: 0 | DT76: 0000 | EA76: 11 | EB76: D4O21W1IBUEXWI9DNA2RI3G1L | EC76: DA4HOQG67KLWL9YTCGKGUEI9L | EI76: 00 | EJ76: X | EK76: 0 | EL76: 0 | HW76: 9 | HX76: 0000000021
CM77: 10 | CN77: DA4HOQG67K82A435KQRFMPDDL | CO77: DA4HOQG67KBWP7PY6FXHYUCQH | CP77: White Total | CQ77: 0007 | CR77: X | CS77: S | CU77: L | CV77: X | DG77: 9 | DH77: 0ORGUNIT | DI77: 0PUR_GROUP | DJ77: Purchasing group | DK77: 0000 | DL77: X | DM77: 0 | DN77: 0 | DO77: 0 | DT77: 0000 | EA77: 11 | EB77: D4O21W1IBUEXWI9DNA2RI3G1L | EC77: DA4HOQG67KMO9WAKO002WTWJD | EI77: 00 | EJ77: X | EK77: 0 | EL77: 0 | HW77: 9 | HX77: 0000000022
CM78: 10 | CN78: D4O21W1IBUB3HEML1KWP5YGOP | CO78: D4O21W1IBUEXWI9DNA2RI3G1L | CP78: Grade 8 F/T | CQ78: 0007 | CS78: S | CU78: L | DG78: 9 | DH78: 0ORGUNIT | DI78: 0SALESORG | DJ78: Sales Organization | DK78: 0000 | DL78: X | DM78: 0 | DN78: 0 | DO78: 0 | DT78: 0000 | EA78: 11 | EB78: D4O21W1IBUEXWI9DNA2RI3G1L | EC78: DA4HOQG67KNFYIMBZJFOZ9AT5 | EE78: 2 | EI78: 00 | EJ78: X | EK78: 0 | EL78: 0 | HW78: 9 | HX78: 0000000023
CM79: 10 | CN79: DA4HOQG67K82A435KQRFMPDDL | CO79: DA4HOQG67KCODU1PHZD419R09 | CP79: Mixed or Multiple Ethnic Groups | CQ79: 0008 | CS79: S | CU79: L | CV79: X | DG79: 9 | DH79: 0ORGUNIT | DI79: 0SALES_GRP | DJ79: Sales group | DK79: 0000 | DL79: X | DM79: 0 | DN79: 0 | DO79: 0 | DT79: 0000 | EA79: 11 | EB79: D4O21W1IBUEXWI9DNA2RI3G1L | EC79: DA4HOQG67KO7N4Y3B2VB1OP2X | EI79: 00 | EJ79: X | EK79: 0 | EL79: 0 | HW79: 9 | HX79: 0000000030
CM80: 10 | CN80: D4O21W1IBUB3HEML1KWP5YGOP | CO80: D4O21W1IBULV2377J4ZA3Y0HL | CP80: Grade 8 P/T | CQ80: 0008 | CS80: S | CU80: L | DG80: 9 | DH80: 0ORGUNIT | DI80: 0SALES_OFF | DJ80: Sales Office | DK80: 0000 | DL80: X | DM80: 0 | DN80: 0 | DO80: 0 | DT80: 0000 | EA80: 11 | EB80: D4O21W1IBUEXWI9DNA2RI3G1L | EC80: DA4HOQG67KOZBR9UMMAX443CP | EE80: 2 | EI80: 00 | EJ80: X | EK80: 0 | EL80: 0 | HW80: 9 | HX80: 0000000040
CM81: 10 | CN81: DA4HOQG67K82A435KQRFMPDDL | CO81: DA4HWYL5HGT0050M6CGMF31MH | CP81: Arab, Arab Scottish or Arab British | CQ81: 0009 | CS81: S | CU81: L | CV81: X | DG81: 9 | DH81: 0CNTRCTTYPE | DI81: 0CNTRCTISFT | DJ81: Fixed-Term Contract | DK81: 0000 | DL81: X | DM81: 2 | DN81: 0 | DO81: 0 | DT81: 0000 | EA81: 11 | EB81: D4O21W1IBUEXWI9DNA2RI3G1L | EC81: DA4HOQG67KPR0DLLY5QJ6JHMH | EE81: 2 | EI81: 00 | EJ81: X | EK81: 0 | EL81: 0 | HW81: 9 | HX81: 0000000041
CM82: 10 | CN82: D4O21W1IBUB3HEML1KWP5YGOP | CO82: D4O21W1IBV18QHQDXXNJGHXX5 | CP82: Grade 8 Total | CQ82: 0009 | CS82: S | CU82: L | DG82: 8 | DH82: 0ORGUNIT | DI82: 0BBPPURGRPX | DJ82: Ind.Purchasing Group | DK82: 0000 | DL82: X | DM82: 2 | DN82: 0 | DO82: 0 | DT82: 0000 | EA82: 11 | EB82: D4O21W1IBUEXWI9DNA2RI3G1L | EC82: DA4HQT1FQ21CBCL0CVM3F7BP5 | EI82: 00 | EJ82: X | EK82: 0 | EL82: 0 | HW82: 9 | HX82: 0000000042 | HY82: 0
CM83: 10 | CN83: DA4HOQG67K82A435KQRFMPDDL | CO83: DA4HOQG67KDG2GDGTISQ3P5A1 | CP83: Total Other Ethnic Background | CQ83: 0010 | CS83: S | CU83: L | CV83: X | DG83: 8 | DH83: 0ORGUNIT | DI83: 0BBPPURORGX | DJ83: Ind. Purchasing Org. | DK83: 0000 | DL83: X | DM83: 2 | DN83: 0 | DO83: 0 | DT83: 0000 | EA83: 11 | EB83: D4O21W1IBUEXWI9DNA2RI3G1L | EC83: DA4HQT1FQ223ZYWROF1PHMPYX | EI83: 00 | EJ83: X | EK83: 0 | EL83: 0 | HW83: 9 | HX83: 0000000043 | HY83: 0
CM84: 10 | CN84: D4O21W1IBUB3HEML1KWP5YGOP | CO84: D4O21W1IBUFPL4L4YTIDKIUBD | CP84: ACZ Grade 8 F/T | CQ84: 0010 | CS84: S | CU84: L | DG84: 8 | DH84: 0ORGUNIT | DI84: 0BBP_BUYID | DJ84: Buyer ID | DK84: 0000 | DL84: X | DM84: 5 | DN84: 0 | DO84: 0 | DT84: 0000 | EA84: 11 | EB84: D4O21W1IBUEXWI9DNA2RI3G1L | EC84: DA4HQT1FQ22VOL8IZYHBK248P | EI84: 00 | EJ84: X | EK84: 0 | EL84: 0 | HW84: 9 | HX84: 0000000109 | HY84: 0
CM85: 10 | CN85: D4O21W1IBUB3HEML1KWP5YGOP | CO85: D4O21W1IBUMMQPIYUOEW6DERD | CP85: ACZ Grade 8 P/T | CQ85: 0011 | CS85: S | CU85: L | DG85: 8 | DH85: 0ORGUNIT | DI85: 0BBP_ISCOMP | DJ85: Organizational Unit is Company | DK85: 0000 | DL85: X | DM85: 1 | DN85: 0 | DO85: 0 | DT85: 0000 | EA85: 11 | EB85: D4O21W1IBUEXWI9DNA2RI3G1L | EC85: DA4HWYL5HGT0050M6CGMF31MH | EI85: 00 | EJ85: X | EK85: 0 | EL85: 0 | HW85: 9 | HX85: 0000000113
CM86: 10 | CN86: DA4HOQG67K82A435KQRFMPDDL | CO86: DA4HOQG67KGISXOI3OJ6DEQD5 | CP86: Pakistani | CQ86: 0011 | CS86: S | CU86: L | CV86: X | DG86: 8 | DH86: 0ORGUNIT | DI86: 0BUS_AREA | DJ86: Business area | DK86: 0000 | DL86: X | DM86: 0 | DN86: 0 | DO86: 0 | DT86: 0000 | EA86: 11 | EB86: D4O21W1IBUEXWI9DNA2RI3G1L | EC86: DA4IKULODJ1MZ318V3RCW3FND | EI86: 00 | EJ86: X | EK86: 0 | EL86: 0 | HW86: 9 | HX86: 0000000120
CM87: 10 | CN87: DA4HOQG67K82A435KQRFMPDDL | CO87: DA4HOQG67KE7R2P8528C64JJT | CP87: Indian | CQ87: 0012 | CS87: S | CU87: L | CV87: X | DG87: 8 | DH87: 0ORGUNIT | DI87: 0COMP_CODE | DJ87: Company code | DK87: 0000 | DL87: X | DM87: 0 | DN87: 0 | DO87: 0 | DT87: 0000 | EA87: 11 | EB87: D4O21W1IBUEXWI9DNA2RI3G1L | EC87: DA4IKULODJ2ENPD06N6YYITX5 | EI87: 00 | EJ87: X | EK87: 0 | EL87: 0 | HW87: 9 | HX87: 0000000121
CM88: 10 | CN88: D4O21W1IBUB3HEML1KWP5YGOP | CO88: D4O21W1IBV0H1VEMME7XE2JND | CP88: ACZ Grade 8 Total | CQ88: 0012 | CS88: S | CU88: L | DG88: 8 | DH88: 0ORGUNIT | DI88: 0CO_MST_AR | DJ88: Controlling Area of Master Cost Center | DK88: 0000 | DL88: X | DM88: 0 | DN88: 0 | DO88: 0 | DT88: 0000 | EA88: 11 | EB88: D4O21W1IBUFPL4L4YTIDKIUBD | EC88: DA4HOQG67K8TYQEWWA71P4RND | EI88: 00 | EJ88: X | EK88: 0 | EL88: 0 | HW88: 9 | HX88: 0000010001 | HY88: DA4HO01I2JQZCATPRJUTJDEK9
CM89: 10 | CN89: DA4HOQG67K82A435KQRFMPDDL | CO89: DA4HOQG67KEZFP0ZGLNY8JXTL | CP89: Bangladeshi | CQ89: 0013 | CS89: S | CU89: L | CV89: X | DG89: 8 | DH89: 0ORGUNIT | DI89: 0CRMSALGRPX | DJ89: Sls Group: Indicator | DK89: 0000 | DL89: X | DM89: 2 | DN89: 0 | DO89: 0 | DT89: 0000 | EA89: 11 | EB89: D4O21W1IBUFPL4L4YTIDKIUBD | EC89: DA4HOQG67K9LNCQO7TMNRK5X5 | EI89: 00 | EJ89: X | EK89: 0 | EL89: 0 | HW89: 9 | HX89: 0000010002 | HY89: DA4HO01I2JEOEDLKMWX0GJ27T
CM90: 10 | CN90: D4O21W1IBUB3HEML1KWP5YGOP | CO90: D4O21W1IBUH8YD8NLWDLPDMUX | CP90: Grade 9 - 15 F/T | CQ90: 0013 | CS90: S | CU90: L | DG90: 8 | DH90: 0ORGUNIT | DI90: 0CRMSALOFFX | DJ90: Sls Office:Indicator | DK90: 0000 | DL90: X | DM90: 2 | DN90: 0 | DO90: 0 | DT90: 0000 | EA90: 11 | EB90: D4O21W1IBUFPL4L4YTIDKIUBD | EC90: DA4HOQG67KADBZ2FJD29TZK6X | EI90: 00 | EJ90: X | EK90: 0 | EL90: 0 | HW90: 9 | HX90: 0000000105
CM91: 10 | CN91: DA4HOQG67K82A435KQRFMPDDL | CO91: DA4HOQG67KFR4BCQS53KAZC3D | CP91: Chinese | CQ91: 0014 | CS91: S | CU91: L | CV91: X | DG91: 8 | DH91: 0ORGUNIT | DI91: 0CRMSALORGX | DJ91: Sales Org. Indicator | DK91: 0000 | DL91: X | DM91: 2 | DN91: 0 | DO91: 0 | DT91: 0000 | EA91: 11 | EB91: D4O21W1IBUFPL4L4YTIDKIUBD | EC91: DA4HOQG67KBWP7PY6FXHYUCQH | EI91: 00 | EJ91: X | EK91: 0 | EL91: 0 | HW91: 9 | HX91: 0000000106
CM92: 10 | CN92: D4O21W1IBUB3HEML1KWP5YGOP | CO92: DEN03PYIT5FSSAA2U7ST53H15 | CP92: Grade 9 - 15 P/T | CQ92: 0014 | CS92: S | CU92: L | DG92: 8 | DH92: 0ORGUNIT | DI92: 0CRMSRVTGRP | DJ92: Ex. CRM Service Org. | DK92: 0000 | DL92: X | DM92: 1 | DN92: 0 | DO92: 0 | DT92: 0000 | EA92: 11 | EB92: D4O21W1IBUFPL4L4YTIDKIUBD | EC92: DA4HOQG67KCODU1PHZD419R09 | EI92: 00 | EJ92: X | EK92: 0 | EL92: 0 | HW92: 9 | HX92: 0000000112 | HY92: 0
CM93: 10 | CN93: DA4HOQG67K82A435KQRFMPDDL | CO93: DA4HOQG67KHAHK09F7YSFU4MX | CP93: Other Asian Background | CQ93: 0015 | CS93: S | CU93: L | CV93: X | DG93: 8 | DH93: 0ORGUNIT | DI93: 0CRM_SALGRP | DJ93: CRM Sales Group | DK93: 0000 | DL93: X | DM93: 1 | DN93: 0 | DO93: 0 | DT93: 0000 | EA93: 11 | EB93: D4O21W1IBUFPL4L4YTIDKIUBD | EC93: DA4HOQG67KDG2GDGTISQ3P5A1 | EI93: 00 | EJ93: X | EK93: 0 | EL93: 0 | HW93: 9 | HX93: 0000000200 | HY93: X
CM94: 10 | CN94: D4O21W1IBUB3HEML1KWP5YGOP | CO94: D4O21W1IBUO63Y6HHRA4B87AX | CP94: Grade 9 - 15 Total | CQ94: 0015 | CS94: S | CU94: L | DG94: 8 | DH94: 0ORGUNIT | DI94: 0CRM_SALOFF | DJ94: CRM Sales Office | DK94: 0000 | DL94: X | DM94: 1 | DN94: 0 | DO94: 0 | DT94: 0000 | EA94: 11 | EB94: D4O21W1IBUFPL4L4YTIDKIUBD | EC94: DA4HOQG67KE7R2P8528C64JJT | EI94: 00 | EJ94: X | EK94: 0 | EL94: 0 | HW94: 9 | HX94: 0000004000 | HY94: X
CM95: 10 | CN95: DA4HOQG67K82A435KQRFMPDDL | CO95: DA4HOQG67KI266C0QREEI9IWP | CP95: Asian Total | CQ95: 0016 | CR95: X | CS95: S | CU95: L | CV95: X | DG95: 8 | DH95: 0ORGUNIT | DI95: 0CRM_SALORG | DJ95: CRM Sales Org. | DK95: 0000 | DL95: X | DM95: 1 | DN95: 0 | DO95: 0 | DT95: 0000 | EA95: 11 | EB95: D4O21W1IBUFPL4L4YTIDKIUBD | EC95: DA4HOQG67KEZFP0ZGLNY8JXTL | EI95: 00 | EJ95: X | EK95: 0 | EL95: 0 | HW95: 9 | HX95: 0000009001 | HY95: Workforce Profile Ethnicity Breakdown (2011) Revised
CM96: 10 | CN96: D4O21W1IBUB3HEML1KWP5YGOP | CO96: D4O21W1IBUGH9QWWACXZMY8L5 | CP96: ACZ Grade 9 - 15 F/T | CQ96: 0016 | CS96: S | CU96: L | DG96: 8 | DH96: 0ORGUNIT | DI96: 0CRM_SRVORG | DJ96: Service Org. CRM | DK96: 0000 | DL96: X | DM96: 1 | DN96: 0 | DO96: 0 | DT96: 0000 | EA96: 11 | EB96: D4O21W1IBUFPL4L4YTIDKIUBD | EC96: DA4HOQG67KFR4BCQS53KAZC3D | EI96: 00 | EJ96: X | EK96: 0 | EL96: 0 | HW96: 9 | HX96: 0000000114 | HY96: 1
CM97: 10 | CN97: DA4HOQG67K82A435KQRFMPDDL | CO97: DA4HOQG67KITUSNS2AU0KOX6H | CP97: African | CQ97: 0017 | CS97: S | CU97: L | CV97: X | DG97: 8 | DH97: 0ORGUNIT | DI97: 0LOGSYS | DJ97: Source System | DK97: 0000 | DL97: X | DM97: 1 | DN97: 0 | DO97: 0 | DT97: 0000 | EA97: 11 | EB97: D4O21W1IBUFPL4L4YTIDKIUBD | EC97: DA4HOQG67KGISXOI3OJ6DEQD5 | EI97: 00 | EJ97: X | EK97: 0 | EL97: 0 | HW97: 8 | HX97: 0000000107 | HY97: DA4HO01I2JEOEDLKMWX0GJ27T
CM98: 10 | CN98: D4O21W1IBUB3HEML1KWP5YGOP | CO98: D4O21W1IBUNEFBUQ67UI8ST15 | CP98: ACZ Grade 9 - 15 P/T | CQ98: 0017 | CS98: S | CU98: L | DG98: 8 | DH98: 0ORGUNIT | DI98: 0MAST_CCTR | DJ98: Master Cost Center | DK98: 0000 | DL98: X | DM98: 0 | DN98: 0 | DO98: 0 | DT98: 0000 | EA98: 11 | EB98: D4O21W1IBUFPL4L4YTIDKIUBD | EC98: DA4HOQG67KHAHK09F7YSFU4MX | EI98: 00 | EJ98: X | EK98: 0 | EL98: 0 | HW98: 8 | HX98: 0000000100 | HY98: X
CM99: 10 | CN99: D4O21W1IBUB3HEML1KWP5YGOP | CO99: DEN04FDC1K04NBJW47LA7T915 | CP99: ACZ Grade 9 - 15 Total | CQ99: 0018 | CS99: S | CU99: L | DG99: 8 | DH99: 0ORGUNIT | DI99: 0PERS_AREA | DJ99: Personnel Area | DK99: 0000 | DL99: X | DM99: 1 | DN99: 0 | DO99: 0 | DT99: 0000 | EA99: 11 | EB99: D4O21W1IBUFPL4L4YTIDKIUBD | EC99: DA4HOQG67KI266C0QREEI9IWP | EI99: 00 | EJ99: X | EK99: 0 | EL99: 0 | HW99: 8 | HX99: 0000000101
CM100: 10 | CN100: DA4HOQG67K82A435KQRFMPDDL | CO100: DA4IKULODJ1MZ318V3RCW3FND | CP100: Other African Background | CQ100: 0018 | CS100: S | CU100: L | CV100: X | DG100: 8 | DH100: 0ORGUNIT | DI100: 0PERS_SAREA | DJ100: Personnel Subarea | DK100: 0000 | DL100: X | DM100: 1 | DN100: 0 | DO100: 0 | DT100: 0000 | EA100: 11 | EB100: D4O21W1IBUFPL4L4YTIDKIUBD | EC100: DA4HOQG67KITUSNS2AU0KOX6H | EI100: 00 | EJ100: X | EK100: 0 | EL100: 0 | HW100: 8 | HX100: 0000000104 | HY100: 1
CM101: 10 | CN101: D4O21W1IBUB3HEML1KWP5YGOP | CO101: D4O21W1IBUWMMRRU0P1V1XKAH | CP101: Other (Not Migrated) F/T | CQ101: 0019 | CS101: F | CU101: L | DG101: 8 | DH101: 0ORGUNIT | DI101: 0PLANT | DJ101: Plant | DK101: 0000 | DL101: X | DM101: 0 | DN101: 0 | DO101: 0 | DT101: 0000 | EA101: 11 | EB101: D4O21W1IBUFPL4L4YTIDKIUBD | EC101: DA4HOQG67KJLJEZJDU9MN4BG9 | EI101: 00 | EJ101: X | EK101: 0 | EL101: 0 | HW101: 8 | HX101: 0000000103
CM102: 10 | CN102: DA4HOQG67K82A435KQRFMPDDL | CO102: DA4IKULODJ2ENPD06N6YYITX5 | CP102: Caribbean | CQ102: 0019 | CS102: S | CU102: L | CV102: X | DG102: 8 | DH102: 0ORGUNIT | DI102: 0PURCH_ORG | DJ102: Purchasing org. | DK102: 0000 | DL102: X | DM102: 0 | DN102: 0 | DO102: 0 | DT102: 0000 | EA102: 11 | EB102: D4O21W1IBUFPL4L4YTIDKIUBD | EC102: DA4HOQG67KKD81BAPDP8PJPQ1 | EI102: 00 | EJ102: X | EK102: 0 | EL102: 0 | HW102: 8 | HX102: 0000000102 | HY102: 1
CM103: 10 | CN103: DA4HOQG67K82A435KQRFMPDDL | CO103: DA4HOQG67KJLJEZJDU9MN4BG9 | CP103: Black | CQ103: 0020 | CS103: S | CU103: L | CV103: X | DG103: 8 | DH103: 0ORGUNIT | DI103: 0PUR_GROUP | DJ103: Purchasing group | DK103: 0000 | DL103: X | DM103: 0 | DN103: 0 | DO103: 0 | DT103: 0000 | EA103: 11 | EB103: D4O21W1IBUFPL4L4YTIDKIUBD | EC103: DA4HOQG67KL4WNN20X4URZ3ZT | EI103: 00 | EJ103: X | EK103: 0 | EL103: 0 | HW103: 8 | HX103: 0000000108
CM104: 10 | CN104: D4O21W1IBUB3HEML1KWP5YGOP | CO104: DEN07Y1DTSNAWTLQYCBLILED5 | CP104: Other (Not Migrated) P/T | CQ104: 0020 | CS104: F | CU104: L | DG104: 8 | DH104: 0ORGUNIT | DI104: 0SALESORG | DJ104: Sales Organization | DK104: 0000 | DL104: X | DM104: 0 | DN104: 0 | DO104: 0 | DT104: 0000 | EA104: 11 | EB104: D4O21W1IBUFPL4L4YTIDKIUBD | EC104: DA4HOQG67KLWL9YTCGKGUEI9L | EI104: 00 | EJ104: X | EK104: 0 | EL104: 0 | HW104: 8 | HX104: 0000009002 | HY104: D4O21W1IBUB3HEML1KWP5YGOP
CM105: 10 | CN105: D4O21W1IBUB3HEML1KWP5YGOP | CO105: DEN07Y1DTSPLYOL0WYMFPVL6H | CP105: Other (Not Migrated) Total | CQ105: 0021 | CS105: F | CU105: L | DG105: 8 | DH105: 0ORGUNIT | DI105: 0SALES_GRP | DJ105: Sales group | DK105: 0000 | DL105: X | DM105: 0 | DN105: 0 | DO105: 0 | DT105: 0000 | EA105: 11 | EB105: D4O21W1IBUFPL4L4YTIDKIUBD | EC105: DA4HOQG67KMO9WAKO002WTWJD | EI105: 00 | EJ105: X | EK105: 0 | EL105: 0 | HW105: 8 | HX105: 0000009000
CM106: 10 | CN106: DA4HOQG67K82A435KQRFMPDDL | CO106: DA4HOQG67KKD81BAPDP8PJPQ1 | CP106: Other Caribbean / Black Background | CQ106: 0021 | CS106: S | CU106: L | CV106: X | DG106: 8 | DH106: 0ORGUNIT | DI106: 0SALES_OFF | DJ106: Sales Office | DK106: 0000 | DL106: X | DM106: 0 | DN106: 0 | DO106: 0 | DT106: 0000 | EA106: 11 | EB106: D4O21W1IBUFPL4L4YTIDKIUBD | EC106: DA4HOQG67KNFYIMBZJFOZ9AT5 | EE106: 2 | EI106: 00 | EJ106: X | EK106: 0 | EL106: 0 | HW106: 8 | HX106: 0000000010
CM107: 10 | CN107: DA4HOQG67K82A435KQRFMPDDL | CO107: DA4HOQG67KL4WNN20X4URZ3ZT | CP107: Black Total | CQ107: 0022 | CR107: X | CS107: S | CU107: L | CV107: X | DG107: 8 | DH107: 0CNTRCTTYPE | DI107: 0CNTRCTISFT | DJ107: Fixed-Term Contract | DK107: 0000 | DL107: X | DM107: 2 | DN107: 0 | DO107: 0 | DT107: 0000 | EA107: 11 | EB107: D4O21W1IBUFPL4L4YTIDKIUBD | EC107: DA4HOQG67KO7N4Y3B2VB1OP2X | EI107: 00 | EJ107: X | EK107: 0 | EL107: 0 | HW107: 8 | HX107: 0000000021
CM108: 10 | CN108: D4O21W1IBUB3HEML1KWP5YGOP | CO108: D4O21W1IBUY600FCNRX36SCU1 | CP108: Total Teaching Staff F/T | CQ108: 0022 | CS108: S | CU108: L | DG108: 7 | DH108: 0ORGUNIT | DI108: 0BBPPURGRPX | DJ108: Ind.Purchasing Group | DK108: 0000 | DL108: X | DM108: 2 | DN108: 0 | DO108: 0 | DT108: 0000 | EA108: 11 | EB108: D4O21W1IBUFPL4L4YTIDKIUBD | EC108: DA4HOQG67KOZBR9UMMAX443CP | EE108: 2 | EI108: 00 | EJ108: X | EK108: 0 | EL108: 0 | HW108: 8 | HX108: 0000000022
CM109: 10 | CN109: D4O21W1IBUB3HEML1KWP5YGOP | CO109: DEN0OSIFULCZTDTFE8U7RBQIH | CP109: Total Teaching Staff P/T | CQ109: 0023 | CS109: S | CU109: L | DG109: 7 | DH109: 0ORGUNIT | DI109: 0BBPPURORGX | DJ109: Ind. Purchasing Org. | DK109: 0000 | DL109: X | DM109: 2 | DN109: 0 | DO109: 0 | DT109: 0000 | EA109: 11 | EB109: D4O21W1IBUFPL4L4YTIDKIUBD | EC109: DA4HOQG67KPR0DLLY5QJ6JHMH | EE109: 2 | EI109: 00 | EJ109: X | EK109: 0 | EL109: 0 | HW109: 8 | HX109: 0000000023
CM110: 10 | CN110: DA4HOQG67K82A435KQRFMPDDL | CO110: DA4HOQG67KLWL9YTCGKGUEI9L | CP110: Total Black & Ethnic Employees | CQ110: 0023 | CR110: X | CS110: S | CU110: L | CV110: X | DG110: 7 | DH110: 0ORGUNIT | DI110: 0BBP_BUYID | DJ110: Buyer ID | DK110: 0000 | DL110: X | DM110: 5 | DN110: 0 | DO110: 0 | DT110: 0000 | EA110: 11 | EB110: D4O21W1IBUFPL4L4YTIDKIUBD | EC110: DA4HQT1FQ21CBCL0CVM3F7BP5 | EI110: 00 | EJ110: X | EK110: 0 | EL110: 0 | HW110: 8 | HX110: 0000000030
CM111: 10 | CN111: D4O21W1IBUB3HEML1KWP5YGOP | CO111: DEN0OSIFULDRI056PS9TTR4S9 | CP111: Total Teaching Staff | CQ111: 0024 | CS111: S | CU111: L | DG111: 7 | DH111: 0ORGUNIT | DI111: 0BBP_ISCOMP | DJ111: Organizational Unit is Company | DK111: 0000 | DL111: X | DM111: 1 | DN111: 0 | DO111: 0 | DT111: 0000 | EA111: 11 | EB111: D4O21W1IBUFPL4L4YTIDKIUBD | EC111: DA4HQT1FQ223ZYWROF1PHMPYX | EI111: 00 | EJ111: X | EK111: 0 | EL111: 0 | HW111: 8 | HX111: 0000000040
CM112: 10 | CN112: DA4HOQG67K82A435KQRFMPDDL | CO112: DA4HOQG67KMO9WAKO002WTWJD | CP112: Total Non Disclosed | CQ112: 0024 | CS112: S | CU112: L | CV112: X | DG112: 7 | DH112: 0ORGUNIT | DI112: 0BUS_AREA | DJ112: Business area | DK112: 0000 | DL112: X | DM112: 0 | DN112: 0 | DO112: 0 | DT112: 0000 | EA112: 11 | EB112: D4O21W1IBUFPL4L4YTIDKIUBD | EC112: DA4HQT1FQ22VOL8IZYHBK248P | EI112: 00 | EJ112: X | EK112: 0 | EL112: 0 | HW112: 8 | HX112: 0000000041
CM113: 10 | CN113: DA4HOQG67K82A435KQRFMPDDL | CO113: DA4HOQG67KNFYIMBZJFOZ9AT5 | CP113: Total White Employees % | CQ113: 0025 | CR113: X | CS113: F | CU113: L | DG113: 7 | DH113: 0ORGUNIT | DI113: 0COMP_CODE | DJ113: Company code | DK113: 0000 | DL113: X | DM113: 0 | DN113: 0 | DO113: 0 | DT113: 0000 | EA113: 11 | EB113: D4O21W1IBUFPL4L4YTIDKIUBD | EC113: DA4HWYL5HGT0050M6CGMF31MH | EI113: 00 | EJ113: X | EK113: 0 | EL113: 0 | HW113: 8 | HX113: 0000000042 | HY113: 0
CM114: 10 | CN114: D4O21W1IBUB3HEML1KWP5YGOP | CO114: DEN0OSIFULEJ6MGY1BPFW6J21 | CP114: Total Non-Teaching Staff F/T | CQ114: 0025 | CS114: S | CU114: L | DG114: 7 | DH114: 0ORGUNIT | DI114: 0CO_MST_AR | DJ114: Controlling Area of Master Cost Center | DK114: 0000 | DL114: X | DM114: 0 | DN114: 0 | DO114: 0 | DT114: 0000 | EA114: 11 | EB114: D4O21W1IBUFPL4L4YTIDKIUBD | EC114: DA4IKULODJ1MZ318V3RCW3FND | EI114: 00 | EJ114: X | EK114: 0 | EL114: 0 | HW114: 8 | HX114: 0000000043 | HY114: 0
CM115: 10 | CN115: D4O21W1IBUB3HEML1KWP5YGOP | CO115: DEN07Y1DTSOUA299LF6TNG6WP | CP115: Total Non-Teaching Staff P/T | CQ115: 0026 | CS115: S | CU115: L | DG115: 7 | DH115: 0ORGUNIT | DI115: 0CRMSALGRPX | DJ115: Sls Group: Indicator | DK115: 0000 | DL115: X | DM115: 2 | DN115: 0 | DO115: 0 | DT115: 0000 | EA115: 11 | EB115: D4O21W1IBUFPL4L4YTIDKIUBD | EC115: DA4IKULODJ2ENPD06N6YYITX5 | EI115: 00 | EJ115: X | EK115: 0 | EL115: 0 | HW115: 8 | HX115: 0000000109 | HY115: 0
CM116: 10 | CN116: DA4HOQG67K82A435KQRFMPDDL | CO116: DA4HOQG67KOZBR9UMMAX443CP | CP116: Total Black & Ethnic Employees % | CQ116: 0026 | CR116: X | CS116: F | CU116: L | DG116: 7 | DH116: 0ORGUNIT | DI116: 0CRMSALOFFX | DJ116: Sls Office:Indicator | DK116: 0000 | DL116: X | DM116: 2 | DN116: 0 | DO116: 0 | DT116: 0000 | EA116: 11 | EB116: D4O21W1IBUGH9QWWACXZMY8L5 | EC116: DA4HOQG67K8TYQEWWA71P4RND | EI116: 00 | EJ116: X | EK116: 0 | EL116: 0 | HW116: 8 | HX116: 0000000113
CM117: 10 | CN117: D4O21W1IBUB3HEML1KWP5YGOP | CO117: DEN07Y1DTSR5BX8JK1HNUQDQ1 | CP117: Total Non-Teaching Staff | CQ117: 0027 | CS117: S | CU117: L | DG117: 7 | DH117: 0ORGUNIT | DI117: 0CRMSALORGX | DJ117: Sales Org. Indicator | DK117: 0000 | DL117: X | DM117: 2 | DN117: 0 | DO117: 0 | DT117: 0000 | EA117: 11 | EB117: D4O21W1IBUGH9QWWACXZMY8L5 | EC117: DA4HOQG67K9LNCQO7TMNRK5X5 | EI117: 00 | EJ117: X | EK117: 0 | EL117: 0 | HW117: 8 | HX117: 0000000120
CM118: 10 | CN118: DA4HOQG67K82A435KQRFMPDDL | CO118: DA4HOQG67KPR0DLLY5QJ6JHMH | CP118: Total Non Declared % | CQ118: 0027 | CR118: X | CS118: F | CU118: L | DG118: 7 | DH118: 0ORGUNIT | DI118: 0CRMSRVTGRP | DJ118: Ex. CRM Service Org. | DK118: 0000 | DL118: X | DM118: 1 | DN118: 0 | DO118: 0 | DT118: 0000 | EA118: 11 | EB118: D4O21W1IBUGH9QWWACXZMY8L5 | EC118: DA4HOQG67KADBZ2FJD29TZK6X | EI118: 00 | EJ118: X | EK118: 0 | EL118: 0 | HW118: 8 | HX118: 0000000121
CM119: 10 | CN119: DA4HOQG67K82A435KQRFMPDDL | CO119: DA4HOQG67KO7N4Y3B2VB1OP2X | CP119: Total Workforce | CQ119: 0028 | CR119: X | CS119: S | CU119: L | CV119: X | DG119: 7 | DH119: 0ORGUNIT | DI119: 0CRM_SALGRP | DJ119: CRM Sales Group | DK119: 0000 | DL119: X | DM119: 1 | DN119: 0 | DO119: 0 | DT119: 0000 | EA119: 11 | EB119: D4O21W1IBUGH9QWWACXZMY8L5 | EC119: DA4HOQG67KBWP7PY6FXHYUCQH | EI119: 00 | EJ119: X | EK119: 0 | EL119: 0 | HW119: 8 | HX119: 0000010001 | HY119: DA4HO01I2JQZCATPRJUTJDEK9
CM120: 10 | CN120: D4O21W1IBUB3HEML1KWP5YGOP | CO120: D4O21W1IBUXEBE3LC8HH4CYK9 | CP120: Total - All WPBR Grades F/T | CQ120: 0028 | CS120: F | CU120: L | DG120: 7 | DH120: 0ORGUNIT | DI120: 0CRM_SALOFF | DJ120: CRM Sales Office | DK120: 0000 | DL120: X | DM120: 1 | DN120: 0 | DO120: 0 | DT120: 0000 | EA120: 11 | EB120: D4O21W1IBUGH9QWWACXZMY8L5 | EC120: DA4HOQG67KCODU1PHZD419R09 | EI120: 00 | EJ120: X | EK120: 0 | EL120: 0 | HW120: 8 | HX120: 0000010002 | HY120: DA4HO01I2JEOEDLKMWX0GJ27T
CM121: 10 | CN121: D4O21W1IBUB3HEML1KWP5YGOP | CO121: DEN07Y1DTSO2LFXI9VR7L0SMX | CP121: Total - All WPBR Grades P/T | CQ121: 0029 | CS121: F | CU121: L | DG121: 7 | DH121: 0ORGUNIT | DI121: 0CRM_SALORG | DJ121: CRM Sales Org. | DK121: 0000 | DL121: X | DM121: 1 | DN121: 0 | DO121: 0 | DT121: 0000 | EA121: 11 | EB121: D4O21W1IBUGH9QWWACXZMY8L5 | EC121: DA4HOQG67KDG2GDGTISQ3P5A1 | EI121: 00 | EJ121: X | EK121: 0 | EL121: 0 | HW121: 8 | HX121: 0000000105
CM122: 10 | CN122: D4O21W1IBUB3HEML1KWP5YGOP | CO122: DEN07Y1DTSQDNAWS8I21SAZG9 | CP122: Total Workforce - All WPBR Grades | CQ122: 0030 | CS122: F | CU122: L | DG122: 7 | DH122: 0ORGUNIT | DI122: 0CRM_SRVORG | DJ122: Service Org. CRM | DK122: 0000 | DL122: X | DM122: 1 | DN122: 0 | DO122: 0 | DT122: 0000 | EA122: 11 | EB122: D4O21W1IBUGH9QWWACXZMY8L5 | EC122: DA4HOQG67KE7R2P8528C64JJT | EI122: 00 | EJ122: X | EK122: 0 | EL122: 0 | HW122: 8 | HX122: 0000000106
CM123: 10 | CN123: D4O21W1IBUB3HEML1KWP5YGOP | CO123: D4O21W1IBV8XKOZZ5BZO4RWMX | CP123: Total Workforce (All) F/T | CQ123: 0031 | CS123: S | CU123: L | DG123: 7 | DH123: 0ORGUNIT | DI123: 0LOGSYS | DJ123: Source System | DK123: 0000 | DL123: X | DM123: 1 | DN123: 0 | DO123: 0 | DT123: 0000 | EA123: 11 | EB123: D4O21W1IBUGH9QWWACXZMY8L5 | EC123: DA4HOQG67KEZFP0ZGLNY8JXTL | EI123: 00 | EJ123: X | EK123: 0 | EL123: 0 | HW123: 8 | HX123: 0000000112 | HY123: 0
CM124: 10 | CN124: D4O21W1IBUB3HEML1KWP5YGOP | CO124: DEN07Y1DTSRX0JKAVKX9X5RZT | CP124: Total Workforce (All) P/T | CQ124: 0032 | CS124: S | CU124: L | DG124: 7 | DH124: 0ORGUNIT | DI124: 0MAST_CCTR | DJ124: Master Cost Center | DK124: 0000 | DL124: X | DM124: 0 | DN124: 0 | DO124: 0 | DT124: 0000 | EA124: 11 | EB124: D4O21W1IBUGH9QWWACXZMY8L5 | EC124: DA4HOQG67KFR4BCQS53KAZC3D | EI124: 00 | EJ124: X | EK124: 0 | EL124: 0 | HW124: 8 | HX124: 0000000200 | HY124: X
CM125: 10 | CN125: D4O21W1IBUB3HEML1KWP5YGOP | CO125: DEN07Y1DTSSOP5W274CVZL69L | CP125: Total Workforce (All) | CQ125: 0033 | CS125: S | CU125: L | DG125: 7 | DH125: 0ORGUNIT | DI125: 0PERS_AREA | DJ125: Personnel Area | DK125: 0000 | DL125: X | DM125: 1 | DN125: 0 | DO125: 0 | DT125: 0000 | EA125: 11 | EB125: D4O21W1IBUGH9QWWACXZMY8L5 | EC125: DA4HOQG67KGISXOI3OJ6DEQD5 | EI125: 00 | EJ125: X | EK125: 0 | EL125: 0 | HW125: 8 | HX125: 0000004000 | HY125: X
... 156 more rows

Sheet SAPBEXfiltersDefunct (hidden)
CW2: 0 | EZ2: 7 | GX2: 10
CW3: 8 | EZ3: 12 | GX3: 31
EZ4: 11 | FA4: DKYHEQSC50X8Z6KCZHDLPIWHL | FC4: X | FD4: 3 | FE4: 0 | FF4: ZPERSAREA | FI4: 0 | GX4: 11 | GY4: DKYHEQSC50X8Z6KCZHDLPIWHL | HB4: 0001 | HC4: 0001 | HD4: 0 | HE4: 0000 | HF4: I | HG4: EQ | HH4: 0091 | HJ4: 0091 | HL4: 1 | HN4: 0 | HP4: Social Work | HU4: 0 | HX4: 0 | HZ4: 0 | IC4: 00
EZ5: 10 | FA5: DKYHES8WD05ZV0W3S49K28IK9 | FC5: X | FD5: 3 | FE5: 0 | FF5: ZPERSAREA | FI5: 0 | GX5: 10 | GY5: DKYHES8WD05ZV0W3S49K28IK9 | HB5: 0001 | HC5: 0001 | HD5: 0 | HE5: 0000 | HF5: I | HG5: EQ | HH5: 0081 | HJ5: 0081 | HL5: 1 | HN5: 0 | HP5: Land and Environmental | HU5: 0 | HX5: 0 | HZ5: 0 | IC5: 00
EZ6: 9 | FA6: DKYHES8WD0M581R1IGDFH7U9L | FC6: X | FD6: 3 | FE6: 0 | FF6: ZPERSAREA | FI6: 0 | GX6: 9 | GY6: DKYHES8WD0M581R1IGDFH7U9L | HB6: 0001 | HC6: 0001 | HD6: 0 | HE6: 0000 | HF6: I | HG6: EQ | HH6: 0071 | HJ6: 0071 | HL6: 1 | HN6: 0 | HP6: Financial | HU6: 0 | HX6: 0 | HZ6: 0 | IC6: 00
EZ7: 8 | FA7: DKYHETKDMHD18FU4JR7J8PPMH | FC7: X | FD7: 3 | FE7: 0 | FF7: ZPERSAREA | FI7: 0 | GX7: 8 | GY7: DKYHETKDMHD18FU4JR7J8PPMH | HB7: 0001 | HC7: 0001 | HD7: 0 | HE7: 0000 | HF7: I | HG7: EQ | HH7: 0051 | HJ7: 0051 | HL7: 1 | HN7: 0 | HP7: Education | HU7: 0 | HX7: 0 | HZ7: 0 | IC7: 00
EZ8: 7 | FA8: DKYHETKDMHT6LGP2A3BENP1BT | FC8: X | FD8: 3 | FE8: 0 | FF8: ZPERSAREA | FI8: 0 | GX8: 7 | GY8: DKYHETKDMHT6LGP2A3BENP1BT | HB8: 0001 | HC8: 0001 | HD8: 0 | HE8: 0000 | HF8: I | HG8: EQ | HH8: 0031 | HJ8: 0031 | HL8: 1 | HN8: 0 | HP8: Development and Regeneration | HU8: 0 | HX8: 0 | HZ8: 0 | IC8: 00
EZ9: 6 | FA9: DKYHEUWHYOW8XZ7VQTZAZCF09 | FC9: X | FD9: 3 | FE9: 0 | FF9: 0ORGUNIT | FI9: 0 | GX9: 6 | GY9: DKYHEUWHYOW8XZ7VQTZAZCF09 | HB9: 0001 | HC9: 0001 | HD9: 0 | HE9: 0000 | HF9: I | HG9: EQ | HH9: 50004880 | HI9: 0ORGUNIT | HJ9: 50004880 | HL9: 1 | HN9: 4 | HP9: Corporate Services | HT9: ORGEH | HU9: 1 | HW9: 000 | HX9: 1 | HY9: 20150930 | HZ9: 1 | IC9: 00
EZ10: 5 | FA10: DKYHEUWHYPCEB02TH636EBQPL | FC10: X | FD10: 3 | FE10: 0 | FF10: 0ORGUNIT | FI10: 0 | GX10: 5 | GY10: DKYHEUWHYPCEB02TH636EBQPL | HB10: 0001 | HC10: 0001 | HD10: 0 | HE10: 0000 | HF10: I | HG10: EQ | HH10: 50004878 | HJ10: 50004878 | HL10: 1 | HN10: 0 | HP10: Chief Executive Srv | HU10: 0 | HX10: 0 | HZ10: 0 | IC10: 00
GX11: 5 | GY11: DKYHEUWHYPCEB02TH636EBQPL | HB11: 0002 | HC11: 0001 | HD11: 0 | HE11: 0000 | HF11: I | HG11: EQ | HH11: 50004879 | HI11: 0ORGUNIT | HJ11: 50004879 | HL11: 1 | HN11: 4 | HP11: Chief Executive Organisation Structure | HT11: ORGEH | HU11: 1 | HW11: 000 | HX11: 1 | HY11: 20150930 | HZ11: 1 | IC11: 00
GX12: 5 | GY12: DKYHEUWHYPCEB02TH636EBQPL | HB12: 0003 | HC12: 0001 | HD12: 0 | HE12: 0000 | HF12: I | HG12: EQ | HH12: 50004939 | HI12: 0ORGUNIT | HJ12: 50004939 | HL12: 1 | HN12: 4 | HP12: Communication & Organisation Development | HT12: ORGEH | HU12: 1 | HW12: 000 | HX12: 1 | HY12: 20150930 | HZ12: 1 | IC12: 00
GX13: 5 | GY13: DKYHEUWHYPCEB02TH636EBQPL | HB13: 0004 | HC13: 0001 | HD13: 0 | HE13: 0000 | HF13: I | HG13: EQ | HH13: 50258124 | HI13: 0ORGUNIT | HJ13: 50258124 | HL13: 1 | HN13: 4 | HP13: CE Corporate Policy | HT13: ORGEH | HU13: 1 | HW13: 000 | HX13: 1 | HY13: 20150930 | HZ13: 1 | IC13: 00

Sheet BExRepositorySheet (hidden)
A1: 7

Sheet Summary
A1: WORKFORCE PROFILE BY ETHNICITY
A2: GLASGOW LIFE
A3: 31 March 2019
B7: The table below has been simplified to provide a summary of the Company's workforce by ethnicity. The detailed information to support this is provided on Page 2
B13: White Employees | E13: BEM Employees | H13: Non Disclosed Employees | K13: Total Workforce
A15: GRADE & ETHNICITY | B15: Number | C15: % | E15: Number | F15: % | H15: Number | I15: % | K15: Number
A17: Grade 1-4 Total | B17: =[1]Template!H7 -> 1278 | C17: =B17/K17 -> 0.775 | E17: =[1]Template!AB7 -> 35 | F17: =E17/K17 -> 0.021 | H17: =[1]Template!AD7 -> 337 | I17: =H17/K17 -> 0.204 | K17: =[1]Template!AJ7 -> 1650
A19: Grade 5-7 Total | B19: =[1]Template!H11 -> 656 | C19: =B19/K19 -> 0.834 | E19: =[1]Template!AB11 -> 19 | F19: =E19/K19 -> 0.024 | H19: =[1]Template!AD11 -> 112 | I19: =H19/K19 -> 0.142 | K19: =[1]Template!AJ11 -> 787
A21: Grade 8 Total | B21: =[1]Template!H15 -> 47 | C21: =B21/K21 -> 0.922 | E21: =[1]Template!AB15 -> 0 | F21: =E21/K21 -> 0 | H21: =[1]Template!AD15 -> 4 | I21: =H21/K21 -> 0.078 | K21: =[1]Template!AJ15 -> 51
A23: Grade 9-15 Total | B23: =[1]Template!H23+[1]Template!H27 -> 27 | C23: =B23/K23 -> 0.871 | E23: =[1]Template!Z23+[1]Template!Z27 -> 0 | F23: =E23/K23 -> 0 | H23: =[1]Template!AD23+[1]Template!AD27 -> 4 | I23: =H23/K23 -> 0.129 | K23: =[1]Template!AJ23+[1]Template!AJ27 -> 31
A25: Other Non Pay & Grading Structure Total | B25: =[1]Template!H31 -> 9 | C25: =B25/K25 -> 0.167 | E25: =[1]Template!AB31 -> 0 | F25: =E25/K25 -> 0 | H25: =[1]Template!AD31 -> 45 | I25: =H25/K25 -> 0.833 | K25: =[1]Template!AJ31 -> 54
A27: Total Workforce F/T | B27: =[1]Template!H33 -> 1321 | C27: =B27/K27 -> 0.792 | E27: =[1]Template!AB33 -> 27 | F27: =E27/K27 -> 0.016 | H27: =[1]Template!AD33 -> 319 | I27: =H27/K27 -> 0.191 | K27: =[1]Template!AJ33 -> 1667
A29: Total Workforce P/T | B29: =[1]Template!H35 -> 696 | C29: =B29/K29 -> 0.768 | E29: =[1]Template!AB35 -> 27 | F29: =E29/K29 -> 0.03 | H29: =[1]Template!AD35 -> 183 | I29: =H29/K29 -> 0.202 | K29: =[1]Template!AJ35 -> 906
A31: Total Workforce | B31: =[1]Template!H37 -> 2017 | C31: =B31/K31 -> 0.784 | E31: =[1]Template!AB37 -> 54 | F31: =E31/K31 -> 0.021 | H31: =[1]Template!AD37 -> 502 | I31: =H31/K31 -> 0.195 | K31: =[1]Template!AJ37 -> 2573

Sheet Breakdown
B1: TOTAL WHITE | J1: MIXED | K1: ARAB | L1: OTHER ETHNIC | N1: ASIAN | U1: BLACK | AB1: TOTAL BEM | AF1: TOTAL %
A3: GLASGIW LIFE BY GRADE & ETHNICITY | B3: White Scottish | C3: Other British | D3: Irish | E3: Gypsy / Traveller | F3: Polish | G3: Other White Ethnic | H3: White Total | J3: Mixed or Multiple Ethnic Groups | K3: Arab, Arab Scottish or Arab British | L3: Total Other Ethnic Background | N3: Pakistani | O3: Indian | P3: Bangladeshi | Q3: Chinese | R3: Other Asian Background | S3: Asian Total | U3: African | V3: Other African Background | W3: Caribbean | X3: Black | Y3: Other Caribbean / Black Background | Z3: Black Total | AB3: Total Black & Ethnic Minority Employees | AD3: Total Non Disclosed | AF3: Total White Employees % | AG3: Total Black & Ethnic Minority Employees % | AH3: Total Non Disclosed % | AJ3: Total Workforce
A5: Grade 1-4 F/T | B5: =Query!B23 -> 661 | C5: =Query!C23 -> 19 | D5: =Query!D23 -> 3 | E5: =Query!E23 -> 0 | F5: =Query!F23 -> 1 | G5: =Query!G23 -> 12 | H5: =SUM(B5:G5) -> 696 | J5: =Query!H23 -> 1 | K5: =Query!I23 -> 0 | L5: =Query!J23 -> 2 | N5: =Query!K23 -> 2 | O5: =Query!L23 -> 1 | P5: =Query!M23 -> 0 | Q5: =Query!N23 -> 4 | R5: =Query!O23 -> 1 | S5: =SUM(N5:R5) -> 8 | U5: =Query!P23 -> 2 | V5: =Query!Q23 -> 1 | W5: =Query!R23 -> 0 | X5: =Query!S23 -> 0 | Y5: =Query!T23 -> 0 | Z5: =SUM(U5:Y5) -> 3 | AB5: =SUM(J5,K5,L5,S5,Z5) -> 14 | AD5: =Query!U23 -> 191 | AF5: =IF(AJ5=0,0,SUM(H5/AJ5)) -> 0.772 | AG5: =IF(AJ5=0,0,SUM(AB5/AJ5)) -> 0.016 | AH5: =IF(AJ5=0,0,SUM(AD5/AJ5)) -> 0.212 | AJ5: =SUM(H5,AB5,AD5) -> 901
A6: Grade 1-4 P/T | B6: =Query!B24 -> 533 | C6: =Query!C24 -> 29 | D6: =Query!D24 -> 6 | E6: =Query!E24 -> 0 | F6: =Query!F24 -> 5 | G6: =Query!G24 -> 9 | H6: =SUM(B6:G6) -> 582 | J6: =Query!H24 -> 3 | K6: =Query!I24 -> 0 | L6: =Query!J24 -> 1 | N6: =Query!K24 -> 6 | O6: =Query!L24 -> 4 | P6: =Query!M24 -> 0 | Q6: =Query!N24 -> 3 | R6: =Query!O24 -> 2 | S6: =SUM(N6:R6) -> 15 | U6: =Query!P24 -> 1 | V6: =Query!Q24 -> 1 | W6: =Query!R24 -> 0 | X6: =Query!S24 -> 0 | Y6: =Query!T24 -> 0 | Z6: =SUM(U6:Y6) -> 2 | AB6: =SUM(J6,K6,L6,S6,Z6) -> 21 | AD6: =Query!U24 -> 146 | AF6: =IF(AJ6=0,0,SUM(H6/AJ6)) -> 0.777 | AG6: =IF(AJ6=0,0,SUM(AB6/AJ6)) -> 0.028 | AH6: =IF(AJ6=0,0,SUM(AD6/AJ6)) -> 0.195 | AJ6: =SUM(H6,AB6,AD6) -> 749
A7: Grade 1-4 Total | B7: =SUM(B5:B6) -> 1194 | C7: 48 | D7: 9 | E7: 0 | F7: 6 | G7: 21 | H7: 1278 | J7: =SUM(J5:J6) -> 4 | K7: =SUM(K5:K6) -> 0 | L7: =SUM(L5:L6) -> 3 | N7: =SUM(N5:N6) -> 8 | O7: 5 | P7: 0 | Q7: 7 | R7: 3 | S7: 23 | U7: =SUM(U5:U6) -> 3 | V7: 2 | W7: 0 | X7: 0 | Y7: 0 | Z7: 5 | AB7: =SUM(J7,K7,L7,S7,Z7) -> 35 | AD7: =SUM(AD5:AD6) -> 337 | AF7: =IF(AJ7=0,0,SUM(H7/AJ7)) -> 0.775 | AG7: =IF(AJ7=0,0,SUM(AB7/AJ7)) -> 0.021 | AH7: =IF(AJ7=0,0,SUM(AD7/AJ7)) -> 0.204 | AJ7: =SUM(H7,AB7,AD7) -> 1650
A9: Grade 5-7 F/T | B9: =Query!B26 -> 481 | C9: =Query!C26 -> 35 | D9: =Query!D26 -> 7 | E9: =Query!E26 -> 0 | F9: =Query!F26 -> 3 | G9: =Query!G26 -> 20 | H9: =SUM(B9:G9) -> 546 | J9: =Query!H26 -> 2 | K9: =Query!I26 -> 1 | L9: =Query!J26 -> 1 | N9: =Query!K26 -> 2 | O9: =Query!L26 -> 3 | P9: =Query!M26 -> 0 | Q9: =Query!N26 -> 2 | R9: =Query!O26 -> 2 | S9: =SUM(N9:R9) -> 9 | U9: =Query!P26 -> 0 | V9: =Query!Q26 -> 0 | W9: =Query!R26 -> 0 | X9: =Query!S26 -> 0 | Y9: =Query!T26 -> 0 | Z9: =SUM(U9:Y9) -> 0 | AB9: =SUM(J9,K9,L9,S9,Z9) -> 13 | AD9: =Query!U26 -> 97 | AF9: =IF(AJ9=0,0,SUM(H9/AJ9)) -> 0.832 | AG9: =IF(AJ9=0,0,SUM(AB9/AJ9)) -> 0.02 | AH9: =IF(AJ9=0,0,SUM(AD9/AJ9)) -> 0.148 | AJ9: =SUM(H9,AB9,AD9) -> 656
A10: Grade 5-7 P/T | B10: =Query!B27 -> 98 | C10: =Query!C27 -> 8 | D10: =Query!D27 -> 0 | E10: =Query!E27 -> 0 | F10: =Query!F27 -> 0 | G10: =Query!G27 -> 4 | H10: =SUM(B10:G10) -> 110 | J10: =Query!H27 -> 3 | K10: =Query!I27 -> 0 | L10: =Query!J27 -> 1 | N10: =Query!K27 -> 0 | O10: =Query!L27 -> 0 | P10: =Query!M27 -> 0 | Q10: =Query!N27 -> 0 | R10: =Query!O27 -> 1 | S10: =SUM(N10:R10) -> 1 | U10: =Query!P27 -> 0 | V10: =Query!Q27 -> 0 | W10: =Query!R27 -> 0 | X10: =Query!S27 -> 1 | Y10: =Query!T27 -> 0 | Z10: =SUM(U10:Y10) -> 1 | AB10: =SUM(J10,K10,L10,S10,Z10) -> 6 | AD10: =Query!U27 -> 15 | AF10: =IF(AJ10=0,0,SUM(H10/AJ10)) -> 0.84 | AG10: =IF(AJ10=0,0,SUM(AB10/AJ10)) -> 0.046 | AH10: =IF(AJ10=0,0,SUM(AD10/AJ10)) -> 0.115 | AJ10: =SUM(H10,AB10,AD10) -> 131
A11: Grade 5-7 Total | B11: =SUM(B9:B10) -> 579 | C11: 43 | D11: 7 | E11: 0 | F11: 3 | G11: 24 | H11: 656 | J11: =SUM(J9:J10) -> 5 | K11: =SUM(K9:K10) -> 1 | L11: =SUM(L9:L10) -> 2 | N11: =SUM(N9:N10) -> 2 | O11: 3 | P11: 0 | Q11: 2 | R11: 3 | S11: 10 | U11: =SUM(U9:U10) -> 0 | V11: 0 | W11: 0 | X11: 1 | Y11: 0 | Z11: 1 | AB11: =SUM(J11,K11,L11,S11,Z11) -> 19 | AD11: =SUM(AD9:AD10) -> 112 | AF11: =IF(AJ11=0,0,SUM(H11/AJ11)) -> 0.834 | AG11: =IF(AJ11=0,0,SUM(AB11/AJ11)) -> 0.024 | AH11: =IF(AJ11=0,0,SUM(AD11/AJ11)) -> 0.142 | AJ11: =SUM(H11,AB11,AD11) -> 787
A13: Grade 8 F/T | B13: =Query!B29 -> 38 | C13: =Query!C29 -> 4 | D13: =Query!D29 -> 2 | E13: =Query!E29 -> 0 | F13: =Query!F29 -> 0 | G13: =Query!G29 -> 1 | H13: =SUM(B13:G13) -> 45 | J13: =Query!H29 -> 0 | K13: =Query!I29 -> 0 | L13: =Query!J29 -> 0 | N13: =Query!K29 -> 0 | O13: =Query!L29 -> 0 | P13: =Query!M29 -> 0 | Q13: =Query!N29 -> 0 | R13: =Query!O29 -> 0 | S13: =SUM(N13:R13) -> 0 | U13: =Query!P29 -> 0 | V13: =Query!Q29 -> 0 | W13: =Query!R29 -> 0 | X13: =Query!S29 -> 0 | Y13: =Query!T29 -> 0 | Z13: =SUM(U13:Y13) -> 0 | AB13: =SUM(J13,K13,L13,S13,Z13) -> 0 | AD13: =Query!U29 -> 3 | AF13: =IF(AJ13=0,0,SUM(H13/AJ13)) -> 0.938 | AG13: =IF(AJ13=0,0,SUM(AB13/AJ13)) -> 0 | AH13: =IF(AJ13=0,0,SUM(AD13/AJ13)) -> 0.063 | AJ13: =SUM(H13,AB13,AD13) -> 48
A14: Grade 8 P/T | B14: =Query!B30 -> 2 | C14: =Query!C30 -> 0 | D14: =Query!D30 -> 0 | E14: =Query!E30 -> 0 | F14: =Query!F30 -> 0 | G14: =Query!G30 -> 0 | H14: =SUM(B14:G14) -> 2 | J14: =Query!H30 -> 0 | K14: =Query!I30 -> 0 | L14: =Query!J30 -> 0 | N14: =Query!K30 -> 0 | O14: =Query!L30 -> 0 | P14: =Query!M30 -> 0 | Q14: =Query!N30 -> 0 | R14: =Query!O30 -> 0 | S14: =SUM(N14:R14) -> 0 | U14: =Query!P30 -> 0 | V14: =Query!Q30 -> 0 | W14: =Query!R30 -> 0 | X14: =Query!S30 -> 0 | Y14: =Query!T30 -> 0 | Z14: =SUM(U14:Y14) -> 0 | AB14: =SUM(J14,K14,L14,S14,Z14) -> 0 | AD14: =Query!U30 -> 1 | AF14: =IF(AJ14=0,0,SUM(H14/AJ14)) -> 0.667 | AG14: =IF(AJ14=0,0,SUM(AB14/AJ14)) -> 0 | AH14: =IF(AJ14=0,0,SUM(AD14/AJ14)) -> 0.333 | AJ14: =SUM(H14,AB14,AD14) -> 3
A15: Grade 8 Total | B15: =SUM(B13:B14) -> 40 | C15: 4 | D15: 2 | E15: 0 | F15: 0 | G15: 1 | H15: 47 | J15: =SUM(J13:J14) -> 0 | K15: =SUM(K13:K14) -> 0 | L15: =SUM(L13:L14) -> 0 | N15: =SUM(N13:N14) -> 0 | O15: 0 | P15: 0 | Q15: 0 | R15: 0 | S15: 0 | U15: =SUM(U13:U14) -> 0 | V15: 0 | W15: 0 | X15: 0 | Y15: 0 | Z15: 0 | AB15: =SUM(J15,K15,L15,S15,Z15) -> 0 | AD15: =SUM(AD13:AD14) -> 4 | AF15: =IF(AJ15=0,0,SUM(H15/AJ15)) -> 0.922 | AG15: =IF(AJ15=0,0,SUM(AB15/AJ15)) -> 0 | AH15: =IF(AJ15=0,0,SUM(AD15/AJ15)) -> 0.078 | AJ15: =SUM(H15,AB15,AD15) -> 51
A17: Grade ACZ 8 F/T | B17: =Query!B32 -> 0 | C17: =Query!C32 -> 0 | D17: =Query!D32 -> 0 | E17: =Query!E32 -> 0 | F17: =Query!F32 -> 0 | G17: =Query!G32 -> 0 | H17: =SUM(B17:G17) -> 0 | J17: =Query!H32 -> 0 | K17: =Query!I32 -> 0 | L17: =Query!J32 -> 0 | N17: =Query!K32 -> 0 | O17: =Query!L32 -> 0 | P17: =Query!M32 -> 0 | Q17: =Query!N32 -> 0 | R17: =Query!O32 -> 0 | S17: =SUM(N17:R17) -> 0 | U17: =Query!P32 -> 0 | V17: =Query!Q32 -> 0 | W17: =Query!R32 -> 0 | X17: =Query!S32 -> 0 | Y17: =Query!T32 -> 0 | Z17: =SUM(U17:Y17) -> 0 | AB17: =SUM(J17,K17,L17,S17,Z17) -> 0 | AD17: =Query!U32 -> 0 | AF17: =IF(AJ17=0,0,SUM(H17/AJ17)) -> 0 | AG17: =IF(AJ17=0,0,SUM(AB17/AJ17)) -> 0 | AH17: =IF(AJ17=0,0,SUM(AD17/AJ17)) -> 0 | AJ17: =SUM(H17,AB17,AD17) -> 0
A18: Grade ACZ 8 P/T | B18: =Query!B33 -> 0 | C18: =Query!C33 -> 0 | D18: =Query!D33 -> 0 | E18: =Query!E33 -> 0 | F18: =Query!F33 -> 0 | G18: =Query!G33 -> 0 | H18: =SUM(B18:G18) -> 0 | J18: =Query!H33 -> 0 | K18: =Query!I33 -> 0 | L18: =Query!J33 -> 0 | N18: =Query!K33 -> 0 | O18: =Query!L33 -> 0 | P18: =Query!M33 -> 0 | Q18: =Query!N33 -> 0 | R18: =Query!O33 -> 0 | S18: =SUM(N18:R18) -> 0 | U18: =Query!P33 -> 0 | V18: =Query!Q33 -> 0 | W18: =Query!R33 -> 0 | X18: =Query!S33 -> 0 | Y18: =Query!T33 -> 0 | Z18: =SUM(U18:Y18) -> 0 | AB18: =SUM(J18,K18,L18,S18,Z18) -> 0 | AD18: =Query!U33 -> 0 | AF18: =IF(AJ18=0,0,SUM(H18/AJ18)) -> 0 | AG18: =IF(AJ18=0,0,SUM(AB18/AJ18)) -> 0 | AH18: =IF(AJ18=0,0,SUM(AD18/AJ18)) -> 0 | AJ18: =SUM(H18,AB18,AD18) -> 0
A19: Grade ACZ 8 Total | B19: =SUM(B17:B18) -> 0 | C19: 0 | D19: 0 | E19: 0 | F19: 0 | G19: 0 | H19: 0 | J19: =SUM(J17:J18) -> 0 | K19: =SUM(K17:K18) -> 0 | L19: =SUM(L17:L18) -> 0 | N19: =SUM(N17:N18) -> 0 | O19: 0 | P19: 0 | Q19: 0 | R19: 0 | S19: 0 | U19: =SUM(U17:U18) -> 0 | V19: 0 | W19: 0 | X19: 0 | Y19: 0 | Z19: 0 | AB19: =SUM(J19,K19,L19,S19,Z19) -> 0 | AD19: =SUM(AD17:AD18) -> 0 | AF19: =IF(AJ19=0,0,SUM(H19/AJ19)) -> 0 | AG19: =IF(AJ19=0,0,SUM(AB19/AJ19)) -> 0 | AH19: =IF(AJ19=0,0,SUM(AD19/AJ19)) -> 0 | AJ19: =SUM(H19,AB19,AD19) -> 0
A21: Grade 9-15 F/T | B21: =Query!B35 -> 22 | C21: =Query!C35 -> 3 | D21: =Query!D35 -> 1 | E21: =Query!E35 -> 0 | F21: =Query!F35 -> 0 | G21: =Query!G35 -> 1 | H21: =SUM(B21:G21) -> 27 | J21: =Query!H35 -> 0 | K21: =Query!I35 -> 0 | L21: =Query!J35 -> 0 | N21: =Query!K35 -> 0 | O21: =Query!L35 -> 0 | P21: =Query!M35 -> 0 | Q21: =Query!N35 -> 0 | R21: =Query!O35 -> 0 | S21: =SUM(N21:R21) -> 0 | U21: =Query!P35 -> 0 | V21: =Query!Q35 -> 0 | W21: =Query!R35 -> 0 | X21: =Query!S35 -> 0 | Y21: =Query!T35 -> 0 | Z21: =SUM(U21:Y21) -> 0 | AB21: =SUM(J21,K21,L21,S21,Z21) -> 0 | AD21: =Query!U35 -> 4 | AF21: =IF(AJ21=0,0,SUM(H21/AJ21)) -> 0.871 | AG21: =IF(AJ21=0,0,SUM(AB21/AJ21)) -> 0 | AH21: =IF(AJ21=0,0,SUM(AD21/AJ21)) -> 0.129 | AJ21: =SUM(H21,AB21,AD21) -> 31
A22: Grade 9-15 P/T | B22: =Query!B36 -> 0 | C22: =Query!C36 -> 0 | D22: =Query!D36 -> 0 | E22: =Query!E36 -> 0 | F22: =Query!F36 -> 0 | G22: =Query!G36 -> 0 | H22: =SUM(B22:G22) -> 0 | J22: =Query!H36 -> 0 | K22: =Query!I36 -> 0 | L22: =Query!J36 -> 0 | N22: =Query!K36 -> 0 | O22: =Query!L36 -> 0 | P22: =Query!M36 -> 0 | Q22: =Query!N36 -> 0 | R22: =Query!O36 -> 0 | S22: =SUM(N22:R22) -> 0 | U22: =Query!P36 -> 0 | V22: =Query!Q36 -> 0 | W22: =Query!R36 -> 0 | X22: =Query!S36 -> 0 | Y22: =Query!T36 -> 0 | Z22: =SUM(U22:Y22) -> 0 | AB22: =SUM(J22,K22,L22,S22,Z22) -> 0 | AD22: =Query!U36 -> 0 | AF22: =IF(AJ22=0,0,SUM(H22/AJ22)) -> 0 | AG22: =IF(AJ22=0,0,SUM(AB22/AJ22)) -> 0 | AH22: =IF(AJ22=0,0,SUM(AD22/AJ22)) -> 0 | AJ22: =SUM(H22,AB22,AD22) -> 0
A23: Grade 9-15 Total | B23: =SUM(B21:B22) -> 22 | C23: 3 | D23: 1 | E23: 0 | F23: 0 | G23: 1 | H23: 27 | J23: =SUM(J21:J22) -> 0 | K23: =SUM(K21:K22) -> 0 | L23: =SUM(L21:L22) -> 0 | N23: =SUM(N21:N22) -> 0 | O23: 0 | P23: 0 | Q23: 0 | R23: 0 | S23: 0 | U23: =SUM(U21:U22) -> 0 | V23: 0 | W23: 0 | X23: 0 | Y23: 0 | Z23: 0 | AB23: =SUM(J23,K23,L23,S23,Z23) -> 0 | AD23: =SUM(AD21:AD22) -> 4 | AF23: =IF(AJ23=0,0,SUM(H23/AJ23)) -> 0.871 | AG23: =IF(AJ23=0,0,SUM(AB23/AJ23)) -> 0 | AH23: =IF(AJ23=0,0,SUM(AD23/AJ23)) -> 0.129 | AJ23: =SUM(H23,AB23,AD23) -> 31
A25: Grade ACZ 9-15 F/T | B25: =Query!B38 -> 0 | C25: =Query!C38 -> 0 | D25: =Query!D38 -> 0 | E25: =Query!E38 -> 0 | F25: =Query!F38 -> 0 | G25: =Query!G38 -> 0 | H25: =SUM(B25:G25) -> 0 | J25: =Query!H38 -> 0 | K25: =Query!I38 -> 0 | L25: =Query!J38 -> 0 | N25: =Query!K38 -> 0 | O25: =Query!L38 -> 0 | P25: =Query!M38 -> 0 | Q25: =Query!N38 -> 0 | R25: =Query!O38 -> 0 | S25: =SUM(N25:R25) -> 0 | U25: =Query!P38 -> 0 | V25: =Query!Q38 -> 0 | W25: =Query!R38 -> 0 | X25: =Query!S38 -> 0 | Y25: =Query!T38 -> 0 | Z25: =SUM(U25:Y25) -> 0 | AB25: =SUM(J25,K25,L25,S25,Z25) -> 0 | AD25: =Query!U38 -> 0 | AF25: =IF(AJ25=0,0,SUM(H25/AJ25)) -> 0 | AG25: =IF(AJ25=0,0,SUM(AB25/AJ25)) -> 0 | AH25: =IF(AJ25=0,0,SUM(AD25/AJ25)) -> 0 | AJ25: =SUM(H25,AB25,AD25) -> 0
A26: Grade ACZ 9-15 P/T | B26: =Query!B39 -> 0 | C26: =Query!C39 -> 0 | D26: =Query!D39 -> 0 | E26: =Query!E39 -> 0 | F26: =Query!F39 -> 0 | G26: =Query!G39 -> 0 | H26: =SUM(B26:G26) -> 0 | J26: =Query!H39 -> 0 | K26: =Query!I39 -> 0 | L26: =Query!J39 -> 0 | N26: =Query!K39 -> 0 | O26: =Query!L39 -> 0 | P26: =Query!M39 -> 0 | Q26: =Query!N39 -> 0 | R26: =Query!O39 -> 0 | S26: =SUM(N26:R26) -> 0 | U26: =Query!P39 -> 0 | V26: =Query!Q39 -> 0 | W26: =Query!R39 -> 0 | X26: =Query!S39 -> 0 | Y26: =Query!T39 -> 0 | Z26: =SUM(U26:Y26) -> 0 | AB26: =SUM(J26,K26,L26,S26,Z26) -> 0 | AD26: =Query!U39 -> 0 | AF26: =IF(AJ26=0,0,SUM(H26/AJ26)) -> 0 | AG26: =IF(AJ26=0,0,SUM(AB26/AJ26)) -> 0 | AH26: =IF(AJ26=0,0,SUM(AD26/AJ26)) -> 0 | AJ26: =SUM(H26,AB26,AD26) -> 0
A27: Grade ACZ 9-15 Total | B27: =SUM(B25:B26) -> 0 | C27: 0 | D27: 0 | E27: 0 | F27: 0 | G27: 0 | H27: 0 | J27: =SUM(J25:J26) -> 0 | K27: =SUM(K25:K26) -> 0 | L27: =SUM(L25:L26) -> 0 | N27: =SUM(N25:N26) -> 0 | O27: 0 | P27: 0 | Q27: 0 | R27: 0 | S27: 0 | U27: =SUM(U25:U26) -> 0 | V27: 0 | W27: 0 | X27: 0 | Y27: 0 | Z27: 0 | AB27: =SUM(J27,K27,L27,S27,Z27) -> 0 | AD27: =SUM(AD25:AD26) -> 0 | AF27: =IF(AJ27=0,0,SUM(H27/AJ27)) -> 0 | AG27: =IF(AJ27=0,0,SUM(AB27/AJ27)) -> 0 | AH27: =IF(AJ27=0,0,SUM(AD27/AJ27)) -> 0 | AJ27: =SUM(H27,AB27,AD27) -> 0
A29: Other Non Pay & Grading Structure F/T | B29: =Query!B41 -> 7 | C29: =Query!C41 -> 0 | D29: =Query!D41 -> 0 | E29: =Query!E41 -> 0 | F29: =Query!F41 -> 0 | G29: =Query!G41 -> 0 | H29: =SUM(B29:G29) -> 7 | J29: =Query!H41 -> 0 | K29: =Query!I41 -> 0 | L29: =Query!J41 -> 0 | N29: =Query!K41 -> 0 | O29: =Query!L41 -> 0 | P29: =Query!M41 -> 0 | Q29: =Query!N41 -> 0 | R29: =Query!O41 -> 0 | S29: =SUM(N29:R29) -> 0 | U29: =Query!P41 -> 0 | V29: =Query!Q41 -> 0 | W29: =Query!R41 -> 0 | X29: =Query!S41 -> 0 | Y29: =Query!T41 -> 0 | Z29: =SUM(U29:Y29) -> 0 | AB29: =SUM(J29,K29,L29,S29,Z29) -> 0 | AD29: =Query!U41 -> 24 | AF29: =IF(AJ29=0,0,SUM(H29/AJ29)) -> 0.226 | AG29: =IF(AJ29=0,0,SUM(AB29/AJ29)) -> 0 | AH29: =IF(AJ29=0,0,SUM(AD29/AJ29)) -> 0.774 | AJ29: =SUM(H29,AB29,AD29) -> 31
A30: Other Non Pay & Grading Structure P/T | B30: =Query!B42 -> 1 | C30: =Query!C42 -> 1 | D30: =Query!D42 -> 0 | E30: =Query!E42 -> 0 | F30: =Query!F42 -> 0 | G30: =Query!G42 -> 0 | H30: =SUM(B30:G30) -> 2 | J30: =Query!H42 -> 0 | K30: =Query!I42 -> 0 | L30: =Query!J42 -> 0 | N30: =Query!K42 -> 0 | O30: =Query!L42 -> 0 | P30: =Query!M42 -> 0 | Q30: =Query!N42 -> 0 | R30: =Query!O42 -> 0 | S30: =SUM(N30:R30) -> 0 | U30: =Query!P42 -> 0 | V30: =Query!Q42 -> 0 | W30: =Query!R42 -> 0 | X30: =Query!S42 -> 0 | Y30: =Query!T42 -> 0 | Z30: =SUM(U30:Y30) -> 0 | AB30: =SUM(J30,K30,L30,S30,Z30) -> 0 | AD30: =Query!U42 -> 21 | AF30: =IF(AJ30=0,0,SUM(H30/AJ30)) -> 0.087 | AG30: =IF(AJ30=0,0,SUM(AB30/AJ30)) -> 0 | AH30: =IF(AJ30=0,0,SUM(AD30/AJ30)) -> 0.913 | AJ30: =SUM(H30,AB30,AD30) -> 23
A31: Other Non P&G Structure Total | B31: =SUM(B29:B30) -> 8 | C31: 1 | D31: 0 | E31: 0 | F31: 0 | G31: 0 | H31: 9 | J31: =SUM(J29:J30) -> 0 | K31: =SUM(K29:K30) -> 0 | L31: =SUM(L29:L30) -> 0 | N31: =SUM(N29:N30) -> 0 | O31: 0 | P31: 0 | Q31: 0 | R31: 0 | S31: 0 | U31: =SUM(U29:U30) -> 0 | V31: 0 | W31: 0 | X31: 0 | Y31: 0 | Z31: 0 | AB31: =SUM(J31,K31,L31,S31,Z31) -> 0 | AD31: =SUM(AD29:AD30) -> 45 | AF31: =IF(AJ31=0,0,SUM(H31/AJ31)) -> 0.167 | AG31: =IF(AJ31=0,0,SUM(AB31/AJ31)) -> 0 | AH31: =IF(AJ31=0,0,SUM(AD31/AJ31)) -> 0.833 | AJ31: =SUM(H31,AB31,AD31) -> 54
A33: Total Workforce F/T | B33: =SUM(B5,B9,B13,B17,B21,B25,B29) -> 1209 | C33: 61 | D33: 13 | E33: 0 | F33: 4 | G33: 34 | H33: =SUM(B33:G33) -> 1321 | J33: =SUM(J5,J9,J13,J17,J21,J25,J29) -> 3 | K33: =SUM(K5,K9,K13,K17,K21,K25,K29) -> 1 | L33: =SUM(L5,L9,L13,L17,L21,L25,L29) -> 3 | N33: =SUM(N5,N9,N13,N17,N21,N25,N29) -> 4 | O33: =SUM(O5,O9,O13,O17,O21,O25,O29) -> 4 | P33: =SUM(P5,P9,P13,P17,P21,P25,P29) -> 0 | Q33: =SUM(Q5,Q9,Q13,Q17,Q21,Q25,Q29) -> 6 | R33: =SUM(R5,R9,R13,R17,R21,R25,R29) -> 3 | S33: =SUM(N33:R33) -> 17 | U33: =SUM(U5,U9,U13,U17,U21,U25,U29) -> 2 | V33: =SUM(V5,V9,V13,V17,V21,V25,V29) -> 1 | W33: =SUM(W5,W9,W13,W17,W21,W25,W29) -> 0 | X33: =SUM(X5,X9,X13,X17,X21,X25,X29) -> 0 | Y33: =SUM(Y5,Y9,Y13,Y17,Y21,Y25,Y29) -> 0 | Z33: =SUM(U33:Y33) -> 3 | AB33: =SUM(AB5,AB9,AB13,AB17,AB21,AB25,AB29) -> 27 | AD33: =SUM(AD5,AD9,AD13,AD17,AD21,AD25,AD29) -> 319 | AF33: =IF(AJ33=0,0,SUM(H33/AJ33)) -> 0.792 | AG33: =IF(AJ33=0,0,SUM(AB33/AJ33)) -> 0.016 | AH33: =IF(AJ33=0,0,SUM(AD33/AJ33)) -> 0.191 | AJ33: =SUM(H33,AB33,AD33) -> 1667
A35: Total Workforce P/T | B35: =SUM(B6,B10,B14,B18,B22,B26,B30) -> 634 | C35: 38 | D35: 6 | E35: 0 | F35: 5 | G35: 13 | H35: =SUM(B35:G35) -> 696 | J35: =SUM(J6,J10,J14,J18,J22,J26,J30) -> 6 | K35: =SUM(K6,K10,K14,K18,K22,K26,K30) -> 0 | L35: =SUM(L6,L10,L14,L18,L22,L26,L30) -> 2 | N35: =SUM(N6,N10,N14,N18,N22,N26,N30) -> 6 | O35: =SUM(O6,O10,O14,O18,O22,O26,O30) -> 4 | P35: =SUM(P6,P10,P14,P18,P22,P26,P30) -> 0 | Q35: =SUM(Q6,Q10,Q14,Q18,Q22,Q26,Q30) -> 3 | R35: =SUM(R6,R10,R14,R18,R22,R26,R30) -> 3 | S35: =SUM(N35:R35) -> 16 | U35: =SUM(U6,U10,U14,U18,U22,U26,U30) -> 1 | V35: =SUM(V6,V10,V14,V18,V22,V26,V30) -> 1 | W35: =SUM(W6,W10,W14,W18,W22,W26,W30) -> 0 | X35: =SUM(X6,X10,X14,X18,X22,X26,X30) -> 1 | Y35: =SUM(Y6,Y10,Y14,Y18,Y22,Y26,Y30) -> 0 | Z35: =SUM(U35:Y35) -> 3 | AB35: =SUM(AB6,AB10,AB14,AB18,AB22,AB26,AB30) -> 27 | AD35: =SUM(AD6,AD10,AD14,AD18,AD22,AD26,AD30) -> 183 | AF35: =IF(AJ35=0,0,SUM(H35/AJ35)) -> 0.768 | AG35: =IF(AJ35=0,0,SUM(AB35/AJ35)) -> 0.03 | AH35: =IF(AJ35=0,0,SUM(AD35/AJ35)) -> 0.202 | AJ35: =SUM(H35,AB35,AD35) -> 906
A37: Total Workforce | B37: =SUM(B33,B35) -> 1843 | C37: 99 | D37: 19 | E37: 0 | F37: 9 | G37: 47 | H37: =SUM(B37:G37) -> 2017 | J37: =SUM(J33,J35) -> 9 | K37: =SUM(K33,K35) -> 1 | L37: =SUM(L33,L35) -> 5 | N37: =SUM(N33,N35) -> 10 | O37: =SUM(O33,O35) -> 8 | P37: =SUM(P33,P35) -> 0 | Q37: =SUM(Q33,Q35) -> 9 | R37: =SUM(R33,R35) -> 6 | S37: =SUM(N37:R37) -> 33 | U37: =SUM(U33,U35) -> 3 | V37: =SUM(V33,V35) -> 2 | W37: =SUM(W33,W35) -> 0 | X37: =SUM(X33,X35) -> 1 | Y37: =SUM(Y33,Y35) -> 0 | Z37: =SUM(U37:Y37) -> 6 | AB37: =SUM(AB33,AB35) -> 54 | AD37: =SUM(AD33,AD35) -> 502 | AF37: =SUM(H37/AJ37) -> 0.784 | AG37: =SUM(AB37/AJ37) -> 0.021 | AH37: =SUM(AD37/AJ37) -> 0.195 | AJ37: =SUM(H37,AB37,AD37) -> 2573

Sheet Query (hidden)
A1: Workforce Profile Ethnicity Breakdown (2011) Revised
A3: Payroll Area
A4: ZPersonal Area | B4: 0161
A5: Organizational Unit
A6: Personnel Subarea | B6: ]GL Bank[
A7: Checkbox for Part-Ti
A8: ZPrimary Employee ID
A9: Ethnicity Breakdown - Rev 2011
A10: WP Bandings
A12: Employee Subgroup | B12: ]Teachers 35.00 M1[, ]Teachers 35.00 M2[, ]Skillseekers[, ]External Non Payroll[, ]Traineeship Program[, ]Non-Payroll Lunar[
A13: Employment Status | B13: Active
A14: Organizational Unit | B14: CSG, ]CE00112561[, ]DR00000029[, ]DR00000035[, ]EP10000000[, ]LS00000500[, ]GL00000001[, ]DR00000145[, ]L000000A00[
A15: Personnel Subarea | B15: ]ZZZZ[
A16: Employment End | B16: >= 30/09/2019
A17: Employment Start | B17: <= 30/09/2019
A18: ZPersonal Area | B18: ]9980..9991[, ]0021[, 0161
A20: Contract Type
B22: White Scottish | C22: Other British | D22: Irish | E22: Gypsy / Traveller | F22: Polish | G22: Other White Ethnic | H22: Mixed or Multiple Ethnic Groups | I22: Arab, Arab Scottish or Arab British | J22: Total Other Ethnic Background | K22: Pakistani | L22: Indian | M22: Bangladeshi | N22: Chinese | O22: Other Asian Background | P22: African | Q22: Other African Background | R22: Caribbean | S22: Black | T22: Other Caribbean / Black Background | U22: Total Non Disclosed
A23: Grade 1 - 4 F/T | B23: 661 | C23: 19 | D23: 3 | F23: 1 | G23: 12 | H23: 1 | J23: 2 | K23: 2 | L23: 1 | N23: 4 | O23: 1 | P23: 2 | Q23: 1 | U23: 191 | V23: =SUM(B23:U23) -> 901
A24: Grade 1 - 4 P/T | B24: 533 | C24: 29 | D24: 6 | F24: 5 | G24: 9 | H24: 3 | J24: 1 | K24: 6 | L24: 4 | N24: 3 | O24: 2 | P24: 1 | Q24: 1 | U24: 146 | V24: =SUM(B24:U24) -> 749
A25: Grade 1 - 4 Total | B25: 1194 | C25: 48 | D25: 9 | F25: 6 | G25: 21 | H25: 4 | J25: 3 | K25: 8 | L25: 5 | N25: 7 | O25: 3 | P25: 3 | Q25: 2 | U25: 337
A26: Grade 5 - 7 F/T | B26: 481 | C26: 35 | D26: 7 | F26: 3 | G26: 20 | H26: 2 | I26: 1 | J26: 1 | K26: 2 | L26: 3 | N26: 2 | O26: 2 | U26: 97 | V26: =SUM(B26:U26) -> 656
A27: Grade 5 - 7 P/T | B27: 98 | C27: 8 | G27: 4 | H27: 3 | J27: 1 | O27: 1 | S27: 1 | U27: 15 | V27: 131
A28: Grade 5 - 7 Total | B28: 579 | C28: 43 | D28: 7 | F28: 3 | G28: 24 | H28: 5 | I28: 1 | J28: 2 | K28: 2 | L28: 3 | N28: 2 | O28: 3 | S28: 1 | U28: 112
A29: Grade 8 F/T | B29: 38 | C29: 4 | D29: 2 | G29: 1 | U29: 3 | V29: 48
A30: Grade 8 P/T | B30: 2 | U30: 1 | V30: 3
A31: Grade 8 Total | B31: 40 | C31: 4 | D31: 2 | G31: 1 | U31: 4
A32: ACZ Grade 8 F/T | V32: 0
A33: ACZ Grade 8 P/T | V33: 0
A34: ACZ Grade 8 Total
A35: Grade 9 - 15 F/T | B35: 22 | C35: 3 | D35: 1 | G35: 1 | U35: 4 | V35: 31
A36: Grade 9 - 15 P/T | V36: 0
A37: Grade 9 - 15 Total | B37: 22 | C37: 3 | D37: 1 | G37: 1 | U37: 4
A38: ACZ Grade 9 - 15 F/T | V38: 0
A39: ACZ Grade 9 - 15 P/T | V39: 0
A40: ACZ Grade 9 - 15 Total
A41: Other (Not Migrated) F/T | B41: 7 | C41: 0 | D41: 0 | F41: 0 | G41: 0 | H41: 0 | I41: 0 | J41: 0 | K41: 0 | L41: 0 | N41: 0 | O41: 0 | P41: 0 | Q41: 0 | U41: 24 | V41: 31
A42: Other (Not Migrated) P/T | B42: 1 | C42: 1 | D42: 0 | F42: 0 | G42: 0 | H42: 0 | J42: 0 | K42: 0 | L42: 0 | N42: 0 | O42: 0 | P42: 0 | Q42: 0 | S42: 0 | U42: 21 | V42: 23
A43: Other (Not Migrated) Total | B43: 8 | C43: 1 | D43: 0 | F43: 0 | G43: 0 | H43: 0 | I43: 0 | J43: 0 | K43: 0 | L43: 0 | N43: 0 | O43: 0 | P43: 0 | Q43: 0 | S43: 0 | U43: 45
A44: Total Teaching Staff F/T | V44: 0
A45: Total Teaching Staff P/T
A46: Total Teaching Staff
A47: Total Non-Teaching Staff F/T | B47: 1209 | C47: 61 | D47: 13 | F47: 4 | G47: 34 | H47: 3 | I47: 1 | J47: 3 | K47: 4 | L47: 4 | N47: 6 | O47: 3 | P47: 2 | Q47: 1 | U47: 319
A48: Total Non-Teaching Staff P/T | B48: 634 | C48: 38 | D48: 6 | F48: 5 | G48: 13 | H48: 6 | J48: 2 | K48: 6 | L48: 4 | N48: 3 | O48: 3 | P48: 1 | Q48: 1 | S48: 1 | U48: 183
A49: Total Non-Teaching Staff | B49: 1843 | C49: 99 | D49: 19 | F49: 9 | G49: 47 | H49: 9 | I49: 1 | J49: 5 | K49: 10 | L49: 8 | N49: 9 | O49: 6 | P49: 3 | Q49: 2 | S49: 1 | U49: 502
A50: Total - All WPBR Grades F/T | B50: 1202 | C50: 61 | D50: 13 | F50: 4 | G50: 34 | H50: 3 | I50: 1 | J50: 3 | K50: 4 | L50: 4 | N50: 6 | O50: 3 | P50: 2 | Q50: 1 | U50: 295
A51: Total - All WPBR Grades P/T | B51: 633 | C51: 37 | D51: 6 | F51: 5 | G51: 13 | H51: 6 | J51: 2 | K51: 6 | L51: 4 | N51: 3 | O51: 3 | P51: 1 | Q51: 1 | S51: 1 | U51: 162
A52: Total Workforce - All WPBR Grades | B52: 1835 | C52: 98 | D52: 19 | F52: 9 | G52: 47 | H52: 9 | I52: 1 | J52: 5 | K52: 10 | L52: 8 | N52: 9 | O52: 6 | P52: 3 | Q52: 2 | S52: 1 | U52: 457
A53: Total Workforce (All) F/T | B53: 1209 | C53: 61 | D53: 13 | F53: 4 | G53: 34 | H53: 3 | I53: 1 | J53: 3 | K53: 4 | L53: 4 | N53: 6 | O53: 3 | P53: 2 | Q53: 1 | U53: 319
A54: Total Workforce (All) P/T | B54: 634 | C54: 38 | D54: 6 | F54: 5 | G54: 13 | H54: 6 | J54: 2 | K54: 6 | L54: 4 | N54: 3 | O54: 3 | P54: 1 | Q54: 1 | S54: 1 | U54: 183
A55: Total Workforce (All) | B55: 1843 | C55: 99 | D55: 19 | F55: 9 | G55: 47 | H55: 9 | I55: 1 | J55: 5 | K55: 10 | L55: 8 | N55: 9 | O55: 6 | P55: 3 | Q55: 2 | S55: 1 | U55: 502
V56: =SUM(V23:V43) -> 2573 | W56: TOTAL
